{"text_format":"1","workbook":"xlsx","n_sheets":10,"sheets":["Doucment Allocation","logistics","AllDocs","TP","REQ","ARC","PRO","SEC","MAS","TST"],"not_rendered":{"charts":0,"images":1,"macros":1,"external_links":0,"defined_names":14,"comments":0,"pivot_tables":0},"unopened":[],"bounds":{"document_bytes":16777216,"sheet_cells":100000,"rows_first":2000,"rows_last":500,"rows_between":2000,"halvings":0,"cell_chars":16384,"cell_head_chars":4096},"cells_cut":0,"cells_raw":0,"read":"whole","date_system":"1900"}

{"sheet":"Doucment Allocation","index":0,"n_rows":98,"n_cols":13,"rows_kept":98,"cut":false,"hidden":false,"merged":[]}
["Slot","Room","WG","Doc-Number","Title","Source","Upload Time","WG disposition (Agreed, Noted, Postponed, Withdrawn)","Type (INC, CR, AG, MIN)","Work Item","Rel","Purpose","Notes"]
["Day1-2 (11:30-13:00)",{"$f":"VLOOKUP(A2,logistics!G:I,2,0)","v":"Main"},{"$f":"VLOOKUP(A2,logistics!G:I,3,0)","v":"MAS"},"MAS-2015-0573","Agenda MAS#17","Yongjing Zhang (Huawei, Chair)",{"$f":"VLOOKUP(D2,AllDocs!A:D,4,0)","v":"2015-05-14T09:11:03"},"Noted","AG",null,null,"Decision"]
["Day1-2 (11:30-13:00)",{"$f":"VLOOKUP(A3,logistics!G:I,2,0)","v":"Main"},{"$f":"VLOOKUP(A3,logistics!G:I,3,0)","v":"MAS"},"MAS-2015-0573R01","Agenda MAS#17","Yongjing Zhang (Huawei, Chair)",{"$f":"VLOOKUP(D3,AllDocs!A:D,4,0)","v":"2015-05-18T04:02:36"},"Agreed","AG",null,null,"Decision"]
["Day1-2 (11:30-13:00)",{"$f":"VLOOKUP(A4,logistics!G:I,2,0)","v":"Main"},{"$f":"VLOOKUP(A4,logistics!G:I,3,0)","v":"MAS"},"MAS-2015-0574","MAS#17 Document Allocation","Yongjing Zhang (Huawei, Chair)",{"$f":"VLOOKUP(D4,AllDocs!A:D,4,0)","v":"2015-05-14T09:10:42"},"Noted","AG",null,null,"Decision"]
["Day1-2 (11:30-13:00)",{"$f":"VLOOKUP(A5,logistics!G:I,2,0)","v":"Main"},{"$f":"VLOOKUP(A5,logistics!G:I,3,0)","v":"MAS"},"MAS-2015-0574R01","MAS#17 Document Allocation","Yongjing Zhang (Huawei, Chair)",{"$f":"VLOOKUP(D5,AllDocs!A:D,4,0)","v":"2015-05-18T10:24:32"},"Noted","AG",null,null,"Decision"]
["Day1-2 (11:30-13:00)",{"$f":"VLOOKUP(A6,logistics!G:I,2,0)","v":"Main"},{"$f":"VLOOKUP(A6,logistics!G:I,3,0)","v":"MAS"},"MAS-2015-0567","TR0007 sec8_4_1","InterDigital",{"$f":"VLOOKUP(D6,AllDocs!A:D,4,0)","v":"2015-05-10T17:25:34"},"Noted","CR","TR-0007 (WI-0005)",2,"Decision","R01 expected"]
["Day1-2 (11:30-13:00)",{"$f":"VLOOKUP(A7,logistics!G:I,2,0)","v":"Main"},{"$f":"VLOOKUP(A7,logistics!G:I,3,0)","v":"MAS"},"MAS-2015-0569","oneM2M_architecture_semantics","Modacom",{"$f":"VLOOKUP(D7,AllDocs!A:D,4,0)","v":"2015-05-10T18:04:32"},"Noted","INC","TR-0007 (WI-0005)",2,"Decision","driving' -> 'deriving'\n"]
["Day1-2 (11:30-13:00)",{"$f":"VLOOKUP(A8,logistics!G:I,2,0)","v":"Main"},{"$f":"VLOOKUP(A8,logistics!G:I,3,0)","v":"MAS"},"MAS-2015-0570","semnatics_data_analytics","Modacom",{"$f":"VLOOKUP(D8,AllDocs!A:D,4,0)","v":"2015-05-10T18:06:32"},"Noted","INC","TR-0007 (WI-0005)",2,"Decision","R01 expected"]
["Day1-2 (11:30-13:00)",{"$f":"VLOOKUP(A9,logistics!G:I,2,0)","v":"Main"},{"$f":"VLOOKUP(A9,logistics!G:I,3,0)","v":"MAS"},"ARC-2015-1844","semanticDescriptor resource","Omar Elloumi, ALU (ATIS), Martin Bauer NEC Europe Ltd. (ETSI)  Joerg Swetina, NEC Europe Ltd. (ETSI)  Ataru Kobayashi, NEC Corporation (TTC)  Mahdi Ben Alaya, LAAS-CNRS (ETSI)  Khalil Drira, LAAS-CNRS (ETSI)",{"$f":"VLOOKUP(D9,AllDocs!A:D,4,0)","v":"2015-05-10T11:19:19"},"Noted","CR","TS-0001 (WI-0002)",2,"Decision","Editorial changes needed.\nCommon descriptor for multiple resources is ffs.\nmultiple descriptor should be possible\n"]
["Day1-2 (11:30-13:00)",{"$f":"VLOOKUP(A10,logistics!G:I,2,0)","v":"Main"},{"$f":"VLOOKUP(A10,logistics!G:I,3,0)","v":"MAS"},"MAS-2015-0564","oneM2M base ontology proposal","Omar Elloumi Alcatel-Lucent (ATIS),  Mahdi Ben Alaya LAAS-CNRS (ETSI),  Khalil Drira LAAS-CNRS (ETSI)",{"$f":"VLOOKUP(D10,AllDocs!A:D,4,0)","v":"2015-05-10T11:39:12"},"Draft","INC","TS-0012 (WI-0025)",2,"Decision","KEEP OPEN for further discussion"]
["Day1-3 (14:30-16:00)",{"$f":"VLOOKUP(A11,logistics!G:I,2,0)","v":"Adhoc"},{"$f":"VLOOKUP(A11,logistics!G:I,3,0)","v":"MAS"},"MAS-2015-0568","Ontology Management Considerrations","InterDigital",{"$f":"VLOOKUP(D11,AllDocs!A:D,4,0)","v":"00:00:00"},"Draft","INC","TR-0007 (WI-0005)",2,"Discussion","Skipped"]
["Day1-3 (14:30-16:00)",{"$f":"VLOOKUP(A12,logistics!G:I,2,0)","v":"Adhoc"},{"$f":"VLOOKUP(A12,logistics!G:I,3,0)","v":"MAS"},"MAS-2015-0568R01","Ontology Architectural Support Considerrations","InterDigital",{"$f":"VLOOKUP(D12,AllDocs!A:D,4,0)","v":"2015-05-10T17:25:58"},"Draft","INC","TR-0007 (WI-0005)",2,"Discussion","Skipped"]
["Day1-3 (14:30-16:00)",{"$f":"VLOOKUP(A13,logistics!G:I,2,0)","v":"Adhoc"},{"$f":"VLOOKUP(A13,logistics!G:I,3,0)","v":"MAS"},"MAS-2015-0568R02","Ontology Architectural Support Considerrations","InterDigital",{"$f":"VLOOKUP(D13,AllDocs!A:D,4,0)","v":"2015-05-18T05:34:32"},"Draft","INC","TR-0007 (WI-0005)",2,"Discussion","Subscription base on semantic rules as filter criteria is of interest.\nThe creator of semantic descriptor is flexible. (could be device AE, or proxy AE, or other AE)\nSlide 5: triple store and semantic engine could be in MN-CSE or IN-CSE. \nTriple store design is implementation specific.\nontologyRef may not be accessible, so oneM2M should be ale to locally store and manage ontologies as resources via Mca,Mcc. \nCaching may be needed as well. Details of (automatic) caching is FFS.\nThere should be a way to link ontolgoyRef and the oneM2M <ontology> resource."]
["Day1-3 (14:30-16:00)",{"$f":"VLOOKUP(A14,logistics!G:I,2,0)","v":"Adhoc"},{"$f":"VLOOKUP(A14,logistics!G:I,3,0)","v":"MAS"},"MAS-2015-0578","SemanticDiscoveryApproach","NEC",{"$f":"VLOOKUP(D14,AllDocs!A:D,4,0)","v":"2015-05-18T00:02:46"},"Draft","INC","TR-0007 (WI-0005)",2,"Discussion","Why not directly open SPARQL HTTP endpoint intead of multi-step approach via oneM2M resource interfaces? -Because of access right concerns?\n"]
["Day2-2 (09:30-11:00)",{"$f":"VLOOKUP(A15,logistics!G:I,2,0)","v":"Adhoc"},{"$f":"VLOOKUP(A15,logistics!G:I,3,0)","v":"MAS"},"MAS-2015-0560","components of the base ontology","China Unicom",{"$f":"VLOOKUP(D15,AllDocs!A:D,4,0)","v":"2015-05-08T06:49:09"},"Draft","CR","TS-0012 (WI-0025)",2,"Decision","Skipped"]
["Day2-2 (09:30-11:00)",{"$f":"VLOOKUP(A16,logistics!G:I,2,0)","v":"Adhoc"},{"$f":"VLOOKUP(A16,logistics!G:I,3,0)","v":"MAS"},"MAS-2015-0560R01","components of the base ontology","China Unicom",{"$f":"VLOOKUP(D16,AllDocs!A:D,4,0)","v":"2015-05-08T06:54:09"},"Draft","INC","TS-0012 (WI-0025)",2,"Decision","Skipped"]
["Day2-2 (09:30-11:00)",{"$f":"VLOOKUP(A17,logistics!G:I,2,0)","v":"Adhoc"},{"$f":"VLOOKUP(A17,logistics!G:I,3,0)","v":"MAS"},"MAS-2015-0560R02","components of the base ontology","China Unicom",{"$f":"VLOOKUP(D17,AllDocs!A:D,4,0)","v":"2015-05-14T04:18:54"},"Draft","INC","TS-0012 (WI-0025)",2,"Decision","Title should be revised.\nUsing bullets are recommended.\nRevision expected"]
["Day2-2 (09:30-11:00)",{"$f":"VLOOKUP(A18,logistics!G:I,2,0)","v":"Adhoc"},{"$f":"VLOOKUP(A18,logistics!G:I,3,0)","v":"MAS"},"MAS-2015-0561","methods for jointly using ontologies","China Unicom",{"$f":"VLOOKUP(D18,AllDocs!A:D,4,0)","v":"2015-05-08T06:51:57"},"Draft","INC","TS-0012 (WI-0025)",2,"Decision","used as general guidance for linking oneM2M Base Ontology and Extenral Ontology. Assumption is that both ontologies are available already."]
["Day2-2 (09:30-11:00)",{"$f":"VLOOKUP(A19,logistics!G:I,2,0)","v":"Adhoc"},{"$f":"VLOOKUP(A19,logistics!G:I,3,0)","v":"MAS"},"MAS-2015-0566","Mapping SAREF to oneM2M - initial discussion draft","Omar Elloumi, ALU (ATIS)",{"$f":"VLOOKUP(D19,AllDocs!A:D,4,0)","v":"2015-05-10T16:53:50"},"Draft","INC","TS-0012 (WI-0025)",2,"Discussion","Comments: mapping rules should be based on oneM2M Base Ontology, instead of individual external ontologies.\nETSI work is dependent on oneM2M semantic progress.\nRemove the mapping rules for the time being.Revision expected"]
["Day2-2 (09:30-11:00)",{"$f":"VLOOKUP(A20,logistics!G:I,2,0)","v":"Adhoc"},{"$f":"VLOOKUP(A20,logistics!G:I,3,0)","v":"MAS"},"MAS-2015-0565","Applying IOCD to oneM2M","Huawei Technologies, Haier, Hitachi, China Unicom, Datang, China academy of information and communications technology",{"$f":"VLOOKUP(D20,AllDocs!A:D,4,0)","v":"2015-05-10T14:17:14"},"Draft","INC","TS-0012 (WI-0025)",2,"Discussion","Skipped"]
["Day2-2 (09:30-11:00)",{"$f":"VLOOKUP(A21,logistics!G:I,2,0)","v":"Adhoc"},{"$f":"VLOOKUP(A21,logistics!G:I,3,0)","v":"MAS"},"MAS-2015-0565R01","Applying IOCD to oneM2M","Huawei Technologies, Haier, Hitachi, China Unicom, Datang, China academy of information and communications technology",{"$f":"VLOOKUP(D21,AllDocs!A:D,4,0)","v":"2015-05-14T02:32:06"},"Draft","INC","TS-0012 (WI-0025)",2,"Discussion","Comments:\nLatest SSO includes 7 aspects. The version in SSO is limited old version. Not clear how SSO is related to OICD.\nSome relationship directions are not correct.\nTake IOCD as external ontology like SAREF. Take some useful concepts into base ontology later.\nThe TR0007 functional model is not necessarily the formal oneM2M architecture. \ncontinue ad hoc discussion on Wed."]
["Day2-2 (09:30-11:00)",{"$f":"VLOOKUP(A22,logistics!G:I,2,0)","v":"Adhoc"},{"$f":"VLOOKUP(A22,logistics!G:I,3,0)","v":"MAS"},"MAS-2015-0563","Update on TS-0012 on general principles and generic interworking","NEC",{"$f":"VLOOKUP(D22,AllDocs!A:D,4,0)","v":"2015-05-11T19:30:18"},"Draft","INC","TS-0012 (WI-0025)",2,"Decision","relationship betwee 'device' and 'oneM2MThing' need to be added.\n"]
["Day2-3 (11:30-13:00)",{"$f":"VLOOKUP(A23,logistics!G:I,2,0)","v":"Breakout"},{"$f":"VLOOKUP(A23,logistics!G:I,3,0)","v":"MAS"},"MAS-2015-0579","LS answer to ITU-T SG17 on the use of OID for IoT","KETI, WG2,5",{"$f":"VLOOKUP(D23,AllDocs!A:D,4,0)","v":"2015-05-19T01:43:14"},"Noted","LS",null,null,"Decision","ARC will take Action Item to fix the inconsistency in TS0001 about the usage of OID for M2M-Node-ID and M2M Device Identifier.\nLS reply will be prepared afterwards."]
["Day2-3 (11:30-13:00)",{"$f":"VLOOKUP(A24,logistics!G:I,2,0)","v":"Breakout"},{"$f":"VLOOKUP(A24,logistics!G:I,3,0)","v":"MAS"},"MAS-2015-0550","Update TS-0006 XML namespace","ALU (TIA)",{"$f":"VLOOKUP(D24,AllDocs!A:D,4,0)","v":"2015-04-29T06:34:57"},"Noted","CR/MNT","TS-0006 (WI-0010)",1,"Decision"]
["Day2-3 (11:30-13:00)",{"$f":"VLOOKUP(A25,logistics!G:I,2,0)","v":"Breakout"},{"$f":"VLOOKUP(A25,logistics!G:I,3,0)","v":"MAS"},"MAS-2015-0550R01","Update TS-0006 XML namespace","ALU (TIA)",{"$f":"VLOOKUP(D25,AllDocs!A:D,4,0)","v":"2015-05-19T04:40:06"},"Agreed","CR/MNT","TS-0006 (WI-0010)",1,"Decision","Go to PRO for final decision"]
["Day2-3 (11:30-13:00)",{"$f":"VLOOKUP(A26,logistics!G:I,2,0)","v":"Breakout"},{"$f":"VLOOKUP(A26,logistics!G:I,3,0)","v":"MAS"},"MAS-2015-0555","TS-0005-LWM2M-V1_0_1_Fix","Gemalto N.V",{"$f":"VLOOKUP(D26,AllDocs!A:D,4,0)","v":"2015-05-04T15:30:56"},"Noted","CR/MNT","TS-0005 (WI-0010)",1,"Decision"]
["Day2-3 (11:30-13:00)",{"$f":"VLOOKUP(A27,logistics!G:I,2,0)","v":"Breakout"},{"$f":"VLOOKUP(A27,logistics!G:I,3,0)","v":"MAS"},"MAS-2015-0555R01","TS-0005-LWM2M-V1_0_1_Fix","Gemalto N.V",{"$f":"VLOOKUP(D27,AllDocs!A:D,4,0)","v":"2015-05-18T02:14:16"},"Noted","CR/MNT","TS-0005 (WI-0010)",1,"Decision"]
["Day2-3 (11:30-13:00)",{"$f":"VLOOKUP(A28,logistics!G:I,2,0)","v":"Breakout"},{"$f":"VLOOKUP(A28,logistics!G:I,3,0)","v":"MAS"},"MAS-2015-0555R02","TS-0005-LWM2M-V1_0_1_Fix","Gemalto N.V",{"$f":"VLOOKUP(D28,AllDocs!A:D,4,0)","v":"2015-05-19T06:44:57"},"Agreed","CR/MNT","TS-0005 (WI-0010)",1,"Decision","AI: Tim - check TS0006 to align objects with latest TS0004\nAI: Thierry - check TS0005 to align objects with latest TS0004"]
["Day2-3 (11:30-13:00)",{"$f":"VLOOKUP(A29,logistics!G:I,2,0)","v":"Breakout"},{"$f":"VLOOKUP(A29,logistics!G:I,3,0)","v":"MAS"},"MAS-2015-0556","TS-0005-LWM2M-V1_0_1_Fix Mirror","Gemalto N.V",{"$f":"VLOOKUP(D29,AllDocs!A:D,4,0)","v":"2015-05-04T15:32:27"},"Withdrawn","CR/MNT","TS-0005 (WI-0010)",2,"Decision"]
["Day2-3 (11:30-13:00)",{"$f":"VLOOKUP(A30,logistics!G:I,2,0)","v":"Breakout"},{"$f":"VLOOKUP(A30,logistics!G:I,3,0)","v":"MAS"},"MAS-2015-0556R01","TS-0005-LWM2M-V1_0_1_Fix Mirror","Gemalto N.V",{"$f":"VLOOKUP(D30,AllDocs!A:D,4,0)","v":"2015-05-18T02:13:07"},"Withdrawn","CR/MNT","TS-0005 (WI-0010)",2,"Decision"]
["Day2-3 (11:30-13:00)",{"$f":"VLOOKUP(A31,logistics!G:I,2,0)","v":"Breakout"},{"$f":"VLOOKUP(A31,logistics!G:I,3,0)","v":"MAS"},"MAS-2015-0558","Device Management related Questions to oneM2M","ORANGE (ETSI)",{"$f":"VLOOKUP(D31,AllDocs!A:D,4,0)","v":"2015-05-10T20:33:41"},"Noted","INC","TS-0001 (WI-0002)",1,"Discussion"]
["Day2-3 (11:30-13:00)",{"$f":"VLOOKUP(A32,logistics!G:I,2,0)","v":"Breakout"},{"$f":"VLOOKUP(A32,logistics!G:I,3,0)","v":"MAS"},"MAS-2015-0558R01","Device Management related Questions to oneM2M","ORANGE (ETSI)",{"$f":"VLOOKUP(D32,AllDocs!A:D,4,0)","v":"2015-05-19T03:38:18"},"Noted","INC","TS-0001 (WI-0002)",1,"Discussion","Q1 answered: \"YES without preference\"\nRevision expected. Next discussion with ARC."]
["Day2-5 (16:30-18:00)",{"$f":"VLOOKUP(A33,logistics!G:I,2,0)","v":"Breakout"},{"$f":"VLOOKUP(A33,logistics!G:I,3,0)","v":"MAS"},"MAS-2015-0575","Clarification_of_abstract_information_model_Approach_1","LG Electronics",{"$f":"VLOOKUP(D33,AllDocs!A:D,4,0)","v":"2015-05-12T10:18:12"},"Noted","CR","TR-0017 (WI-0017)",2,"Decision"]
["Day2-5 (16:30-18:00)",{"$f":"VLOOKUP(A34,logistics!G:I,2,0)","v":"Breakout"},{"$f":"VLOOKUP(A34,logistics!G:I,3,0)","v":"MAS"},"MAS-2015-0575R01","Clarification_of_abstract_information_model_Approach_1","LG Electronics",{"$f":"VLOOKUP(D34,AllDocs!A:D,4,0)","v":"2015-05-13T08:38:08"},"Noted","CR","TR-0017 (WI-0017)",2,"Decision","Normative work in the future will not define 'Device sets', but list of common/device-specific characteristics."]
["Day2-5 (16:30-18:00)",{"$f":"VLOOKUP(A35,logistics!G:I,2,0)","v":"Breakout"},{"$f":"VLOOKUP(A35,logistics!G:I,3,0)","v":"MAS"},"MAS-2015-0575R02","Clarification_of_abstract_information_model_Approach_1","LG Electronics",{"$f":"VLOOKUP(D35,AllDocs!A:D,4,0)","v":"2015-05-19T08:56:20"},"Agreed","CR","TR-0017 (WI-0017)",2,"Decision"]
["Day2-5 (16:30-18:00)",{"$f":"VLOOKUP(A36,logistics!G:I,2,0)","v":"Breakout"},{"$f":"VLOOKUP(A36,logistics!G:I,3,0)","v":"MAS"},"MAS-2015-0557","TR-0017 support of HGI SmartHome Device Template","HGI",{"$f":"VLOOKUP(D36,AllDocs!A:D,4,0)","v":"2015-05-08T14:28:09"},"Agreed","INC","TR-0017 (WI-0017)",2,"Decision","RPC like modeling may not be easily mapped to oneM2M resource structure. It's FFS.\nReference to github should be added later."]
["Day2-5 (16:30-18:00)",{"$f":"VLOOKUP(A37,logistics!G:I,2,0)","v":"Breakout"},{"$f":"VLOOKUP(A37,logistics!G:I,3,0)","v":"MAS"},"MAS-2015-0571","Analysis from ECHONET on TR-0017","NTT",{"$f":"VLOOKUP(D37,AllDocs!A:D,4,0)","v":"2015-05-13T06:22:11"},"Noted","CR","TR-0017 (WI-0017)",2,"Decision"]
[null,{"$f":"VLOOKUP(A38,logistics!G:I,2,0)","v":{"$error":"#N/A"}},{"$f":"VLOOKUP(A38,logistics!G:I,3,0)","v":{"$error":"#N/A"}},"MAS-2015-0571R01","Analysis from ECHONET on TR-0017","NTT",{"$f":"VLOOKUP(D38,AllDocs!A:D,4,0)","v":"2015-05-19T00:39:20"},"Noted","CR","TR-0017 (WI-0017)",2,"Decision"]
[null,{"$f":"VLOOKUP(A39,logistics!G:I,2,0)","v":{"$error":"#N/A"}},{"$f":"VLOOKUP(A39,logistics!G:I,3,0)","v":{"$error":"#N/A"}},"MAS-2015-0571R02","Analysis from ECHONET on TR-0017","NTT",{"$f":"VLOOKUP(D39,AllDocs!A:D,4,0)","v":"2015-05-19T09:23:34"},"Noted","CR","TR-0017 (WI-0017)",2,"Decision"]
[null,{"$f":"VLOOKUP(A40,logistics!G:I,2,0)","v":{"$error":"#N/A"}},{"$f":"VLOOKUP(A40,logistics!G:I,3,0)","v":{"$error":"#N/A"}},"MAS-2015-0571R03","Analysis from ECHONET on TR-0017","NTT",{"$f":"VLOOKUP(D40,AllDocs!A:D,4,0)","v":"2015-05-19T09:27:03"},"Agreed","CR","TR-0017 (WI-0017)",2,"Decision"]
[null,{"$f":"VLOOKUP(A41,logistics!G:I,2,0)","v":{"$error":"#N/A"}},{"$f":"VLOOKUP(A41,logistics!G:I,3,0)","v":{"$error":"#N/A"}},"MAS-2015-0572","Extension to Device Sets on TR-0017","NTT",{"$f":"VLOOKUP(D41,AllDocs!A:D,4,0)","v":"2015-05-13T06:21:25"},"Noted","CR","TR-0017 (WI-0017)",2,"Decision"]
[null,{"$f":"VLOOKUP(A42,logistics!G:I,2,0)","v":{"$error":"#N/A"}},{"$f":"VLOOKUP(A42,logistics!G:I,3,0)","v":{"$error":"#N/A"}},"MAS-2015-0572R01","Extension to Device Sets on TR-0017","NTT",{"$f":"VLOOKUP(D42,AllDocs!A:D,4,0)","v":"2015-05-19T04:35:00"},"Noted","CR","TR-0017 (WI-0017)",2,"Decision","To add a column of 'characterisic type'"]
[null,{"$f":"VLOOKUP(A43,logistics!G:I,2,0)","v":{"$error":"#N/A"}},{"$f":"VLOOKUP(A43,logistics!G:I,3,0)","v":{"$error":"#N/A"}},"MAS-2015-0572R02","Extension to Device Sets on TR-0017","NTT",{"$f":"VLOOKUP(D43,AllDocs!A:D,4,0)","v":"2015-05-19T09:27:28"},"Agreed","CR","TR-0017 (WI-0017)",2,"Decision"]
[null,{"$f":"VLOOKUP(A44,logistics!G:I,2,0)","v":{"$error":"#N/A"}},{"$f":"VLOOKUP(A44,logistics!G:I,3,0)","v":{"$error":"#N/A"}},"MAS-2015-0576","Wayforward of Abstract Information Model","LG Electronics",{"$f":"VLOOKUP(D44,AllDocs!A:D,4,0)","v":"2015-05-12T10:20:26"},"Noted","CR","TS-0001 (WI-0002)",2,"Discussion","What's the benefits of introducing new resource type instead of mapping to existing <AE>,<container> resources?\noneM2M will not define specialization of <homeApplianceProfile>, e.g. what is [washer] or [dryer].\n 'characteristic' map to attribute vs. sub-resource need further clairification"]
[null,{"$f":"VLOOKUP(A45,logistics!G:I,2,0)","v":{"$error":"#N/A"}},{"$f":"VLOOKUP(A45,logistics!G:I,3,0)","v":{"$error":"#N/A"}},null,null,null,{"$f":"VLOOKUP(D45,AllDocs!A:D,4,0)","v":{"$error":"#N/A"}}]
[null,{"$f":"VLOOKUP(A46,logistics!G:I,2,0)","v":{"$error":"#N/A"}},{"$f":"VLOOKUP(A46,logistics!G:I,3,0)","v":{"$error":"#N/A"}},null,null,null,{"$f":"VLOOKUP(D46,AllDocs!A:D,4,0)","v":{"$error":"#N/A"}}]
[null,{"$f":"VLOOKUP(A47,logistics!G:I,2,0)","v":{"$error":"#N/A"}},{"$f":"VLOOKUP(A47,logistics!G:I,3,0)","v":{"$error":"#N/A"}},null,null,null,{"$f":"VLOOKUP(D47,AllDocs!A:D,4,0)","v":{"$error":"#N/A"}}]
["Day3-2 (09:30-11:00)",{"$f":"VLOOKUP(A48,logistics!G:I,2,0)","v":"Main"},{"$f":"VLOOKUP(A48,logistics!G:I,3,0)","v":"PRO/MAS"},"<TBD>",null,null,{"$f":"VLOOKUP(D48,AllDocs!A:D,4,0)","v":{"$error":"#N/A"}}]
[null,{"$f":"VLOOKUP(A49,logistics!G:I,2,0)","v":{"$error":"#N/A"}},{"$f":"VLOOKUP(A49,logistics!G:I,3,0)","v":{"$error":"#N/A"}},"MAS-2015-0550R01","Update TS-0006 XML namespace","ALU (TIA)",{"$f":"VLOOKUP(D49,AllDocs!A:D,4,0)","v":"2015-05-19T04:40:06"},"Draft","CR/MNT","TS-0006 (WI-0010)",1,"Decision"]
[null,{"$f":"VLOOKUP(A50,logistics!G:I,2,0)","v":{"$error":"#N/A"}},{"$f":"VLOOKUP(A50,logistics!G:I,3,0)","v":{"$error":"#N/A"}},"MAS-2015-0580","Align Resource Names and Attributes","ALU (TIA)","2015-05-19T08:17:15","Draft","CR/MNT","TS-0006 (WI-0010)",1,"Decision"]
[null,{"$f":"VLOOKUP(A51,logistics!G:I,2,0)","v":{"$error":"#N/A"}},{"$f":"VLOOKUP(A51,logistics!G:I,3,0)","v":{"$error":"#N/A"}},null,null,null,{"$f":"VLOOKUP(D51,AllDocs!A:D,4,0)","v":{"$error":"#N/A"}}]
["Day3-3 (11:30-13:00)",{"$f":"VLOOKUP(A52,logistics!G:I,2,0)","v":"Breakout"},{"$f":"VLOOKUP(A52,logistics!G:I,3,0)","v":"MAS"},"<Revisions>",null,null,{"$f":"VLOOKUP(D52,AllDocs!A:D,4,0)","v":{"$error":"#N/A"}}]
[null,{"$f":"VLOOKUP(A53,logistics!G:I,2,0)","v":{"$error":"#N/A"}},{"$f":"VLOOKUP(A53,logistics!G:I,3,0)","v":{"$error":"#N/A"}},"MAS-2015-0534R01","DeviceConfigurationUseCases","FUJITSU",{"$f":"VLOOKUP(D53,AllDocs!A:D,4,0)","v":"2015-05-10T14:13:47"},"Draft","INC","TR-0001 (WI-0015)",2,"Decision"]
[null,{"$f":"VLOOKUP(A54,logistics!G:I,2,0)","v":{"$error":"#N/A"}},{"$f":"VLOOKUP(A54,logistics!G:I,3,0)","v":{"$error":"#N/A"}},"MAS-2015-0560R03","components of the base ontology","China Unicom",{"$f":"VLOOKUP(D54,AllDocs!A:D,4,0)","v":{"$error":"#N/A"}},"Draft","INC","TS-0012 (WI-0025)",2,"Decision"]
[null,{"$f":"VLOOKUP(A55,logistics!G:I,2,0)","v":{"$error":"#N/A"}},{"$f":"VLOOKUP(A55,logistics!G:I,3,0)","v":{"$error":"#N/A"}},"MAS-2015-0561","methods for jointly using ontologies","China Unicom",{"$f":"VLOOKUP(D55,AllDocs!A:D,4,0)","v":"2015-05-08T06:51:57"},"Draft","INC","TS-0012 (WI-0025)",2,"Decision"]
[null,{"$f":"VLOOKUP(A56,logistics!G:I,2,0)","v":{"$error":"#N/A"}},{"$f":"VLOOKUP(A56,logistics!G:I,3,0)","v":{"$error":"#N/A"}},"MAS-2015-0567R01","TR0007 sec8_4_1","InterDigital",{"$f":"VLOOKUP(D56,AllDocs!A:D,4,0)","v":{"$error":"#N/A"}},null,"CR","TR-0007 (WI-0005)",2,"Decision"]
[null,{"$f":"VLOOKUP(A57,logistics!G:I,2,0)","v":{"$error":"#N/A"}},{"$f":"VLOOKUP(A57,logistics!G:I,3,0)","v":{"$error":"#N/A"}},"MAS-2015-0569R01","oneM2M_architecture_semantics","Modacom",{"$f":"VLOOKUP(D57,AllDocs!A:D,4,0)","v":"2015-05-18T06:48:30"},null,"INC","TR-0007 (WI-0005)",2,"Decision"]
[null,{"$f":"VLOOKUP(A58,logistics!G:I,2,0)","v":{"$error":"#N/A"}},{"$f":"VLOOKUP(A58,logistics!G:I,3,0)","v":{"$error":"#N/A"}},"MAS-2015-0570R01","semnatics_data_analytics","Modacom",{"$f":"VLOOKUP(D58,AllDocs!A:D,4,0)","v":"2015-05-18T06:46:57"},null,"INC","TR-0007 (WI-0005)",2,"Decision"]
[null,{"$f":"VLOOKUP(A59,logistics!G:I,2,0)","v":{"$error":"#N/A"}},{"$f":"VLOOKUP(A59,logistics!G:I,3,0)","v":{"$error":"#N/A"}},"MAS-2015-0552R03","CR_to_Add_Semantic_Descriptor_in_TR-0007","NEC, Alcatel-Lucent",{"$f":"VLOOKUP(D59,AllDocs!A:D,4,0)","v":"2015-05-13T10:58:11"},"Draft","CR","TR-0007 (WI-0005)",2,"Decision"]
[null,{"$f":"VLOOKUP(A60,logistics!G:I,2,0)","v":{"$error":"#N/A"}},{"$f":"VLOOKUP(A60,logistics!G:I,3,0)","v":{"$error":"#N/A"}},"ARC-2015-1844R01","semanticDescriptor resource","Omar Elloumi, ALU (ATIS), Martin Bauer NEC Europe Ltd. (ETSI)  Joerg Swetina, NEC Europe Ltd. (ETSI)  Ataru Kobayashi, NEC Corporation (TTC)  Mahdi Ben Alaya, LAAS-CNRS (ETSI)  Khalil Drira, LAAS-CNRS (ETSI)",{"$f":"VLOOKUP(D60,AllDocs!A:D,4,0)","v":{"$error":"#N/A"}},"Draft","CR","TS-0001 (WI-0002)",2,"Decision"]
[null,{"$f":"VLOOKUP(A61,logistics!G:I,2,0)","v":{"$error":"#N/A"}},{"$f":"VLOOKUP(A61,logistics!G:I,3,0)","v":{"$error":"#N/A"}},"MAS-2015-0559","Contribution to TR-0017 SH-Abstract-Information-Model","ORANGE (ETSI)",{"$f":"VLOOKUP(D61,AllDocs!A:D,4,0)","v":"00:00:00"},"Draft","INC","TR-0017 (WI-0017)",2]
[null,{"$f":"VLOOKUP(A62,logistics!G:I,2,0)","v":{"$error":"#N/A"}},{"$f":"VLOOKUP(A62,logistics!G:I,3,0)","v":{"$error":"#N/A"}},null,null,null,{"$f":"VLOOKUP(D62,AllDocs!A:D,4,0)","v":{"$error":"#N/A"}}]
[null,{"$f":"VLOOKUP(A63,logistics!G:I,2,0)","v":{"$error":"#N/A"}},{"$f":"VLOOKUP(A63,logistics!G:I,3,0)","v":{"$error":"#N/A"}},null,null,null,{"$f":"VLOOKUP(D63,AllDocs!A:D,4,0)","v":{"$error":"#N/A"}}]
[null,{"$f":"VLOOKUP(A64,logistics!G:I,2,0)","v":{"$error":"#N/A"}},{"$f":"VLOOKUP(A64,logistics!G:I,3,0)","v":{"$error":"#N/A"}},null,null,null,{"$f":"VLOOKUP(D64,AllDocs!A:D,4,0)","v":{"$error":"#N/A"}}]
["Day3-4 (14:30-16:00)",{"$f":"VLOOKUP(A65,logistics!G:I,2,0)","v":"Adhoc"},{"$f":"VLOOKUP(A65,logistics!G:I,3,0)","v":"MAS"},"<semantic architecture>",null,null,{"$f":"VLOOKUP(D65,AllDocs!A:D,4,0)","v":{"$error":"#N/A"}}]
[null,{"$f":"VLOOKUP(A66,logistics!G:I,2,0)","v":{"$error":"#N/A"}},{"$f":"VLOOKUP(A66,logistics!G:I,3,0)","v":{"$error":"#N/A"}},"MAS-2015-0562","Discussions on semantic description enablement","China Unicom",{"$f":"VLOOKUP(D66,AllDocs!A:D,4,0)","v":"2015-05-08T09:48:00"},"Draft","INC","TR-0007 (WI-0005)",2,"Discussion"]
[null,{"$f":"VLOOKUP(A67,logistics!G:I,2,0)","v":{"$error":"#N/A"}},{"$f":"VLOOKUP(A67,logistics!G:I,3,0)","v":{"$error":"#N/A"}},"MAS-2015-0578","SemanticDiscoveryApproach","NEC",{"$f":"VLOOKUP(D67,AllDocs!A:D,4,0)","v":"2015-05-18T00:02:46"},"Draft","INC","TR-0007 (WI-0005)",2,"Discussion"]
[null,{"$f":"VLOOKUP(A68,logistics!G:I,2,0)","v":{"$error":"#N/A"}},{"$f":"VLOOKUP(A68,logistics!G:I,3,0)","v":{"$error":"#N/A"}},"<base ontology drafting>",null,null,{"$f":"VLOOKUP(D68,AllDocs!A:D,4,0)","v":{"$error":"#N/A"}}]
[null,{"$f":"VLOOKUP(A69,logistics!G:I,2,0)","v":{"$error":"#N/A"}},{"$f":"VLOOKUP(A69,logistics!G:I,3,0)","v":{"$error":"#N/A"}},"MAS-2015-0563R01","Update on TS-0012 on general principles and generic interworking","NEC",{"$f":"VLOOKUP(D69,AllDocs!A:D,4,0)","v":{"$error":"#N/A"}},"Draft","INC","TS-0012 (WI-0025)",2,"Decision"]
[null,{"$f":"VLOOKUP(A70,logistics!G:I,2,0)","v":{"$error":"#N/A"}},{"$f":"VLOOKUP(A70,logistics!G:I,3,0)","v":{"$error":"#N/A"}},"MAS-2015-0564","oneM2M base ontology proposal","Omar Elloumi Alcatel-Lucent (ATIS),  Mahdi Ben Alaya LAAS-CNRS (ETSI),  Khalil Drira LAAS-CNRS (ETSI)",{"$f":"VLOOKUP(D70,AllDocs!A:D,4,0)","v":"2015-05-10T11:39:12"},"Draft","INC","TS-0012 (WI-0025)",2,"Decision"]
[null,{"$f":"VLOOKUP(A71,logistics!G:I,2,0)","v":{"$error":"#N/A"}},{"$f":"VLOOKUP(A71,logistics!G:I,3,0)","v":{"$error":"#N/A"}},"MAS-2015-0566R01","Mapping SAREF to oneM2M - initial discussion draft","Omar Elloumi, ALU (ATIS)",{"$f":"VLOOKUP(D71,AllDocs!A:D,4,0)","v":{"$error":"#N/A"}},"Draft","INC","TS-0012 (WI-0025)",2,"Discussion"]
[null,{"$f":"VLOOKUP(A72,logistics!G:I,2,0)","v":{"$error":"#N/A"}},{"$f":"VLOOKUP(A72,logistics!G:I,3,0)","v":{"$error":"#N/A"}},"MAS-2015-0565R01","Applying IOCD to oneM2M","Huawei Technologies, Haier, Hitachi, China Unicom, Datang, China academy of information and communications technology",{"$f":"VLOOKUP(D72,AllDocs!A:D,4,0)","v":"2015-05-14T02:32:06"},"Draft","INC","TS-0012 (WI-0025)",2,"Discussion"]
[null,{"$f":"VLOOKUP(A73,logistics!G:I,2,0)","v":{"$error":"#N/A"}},{"$f":"VLOOKUP(A73,logistics!G:I,3,0)","v":{"$error":"#N/A"}},null,null,null,{"$f":"VLOOKUP(D73,AllDocs!A:D,4,0)","v":{"$error":"#N/A"}}]
["Day4-3 (11:30-13:00)",{"$f":"VLOOKUP(A74,logistics!G:I,2,0)","v":"Main"},{"$f":"VLOOKUP(A74,logistics!G:I,3,0)","v":"ARC/MAS"},null,null,null,{"$f":"VLOOKUP(D74,AllDocs!A:D,4,0)","v":{"$error":"#N/A"}}]
[null,{"$f":"VLOOKUP(A75,logistics!G:I,2,0)","v":{"$error":"#N/A"}},{"$f":"VLOOKUP(A75,logistics!G:I,3,0)","v":{"$error":"#N/A"}},"ARC-2015-1844","semanticDescriptor resource","Omar Elloumi, ALU (ATIS), Martin Bauer NEC Europe Ltd. (ETSI)  Joerg Swetina, NEC Europe Ltd. (ETSI)  Ataru Kobayashi, NEC Corporation (TTC)  Mahdi Ben Alaya, LAAS-CNRS (ETSI)  Khalil Drira, LAAS-CNRS (ETSI)",{"$f":"VLOOKUP(D75,AllDocs!A:D,4,0)","v":"2015-05-10T11:19:19"},"Draft","CR","TS-0001 (WI-0002)",2,"Decision"]
[null,{"$f":"VLOOKUP(A76,logistics!G:I,2,0)","v":{"$error":"#N/A"}},{"$f":"VLOOKUP(A76,logistics!G:I,3,0)","v":{"$error":"#N/A"}},"MAS-2015-0546","applying SAREF (as an example) to oneM2M","Omar Elloumi, ALU (ATIS)",{"$f":"VLOOKUP(D76,AllDocs!A:D,4,0)","v":"2015-04-19T13:00:26"},"Noted","INC",null,2,"Discussion","???"]
[null,{"$f":"VLOOKUP(A77,logistics!G:I,2,0)","v":{"$error":"#N/A"}},{"$f":"VLOOKUP(A77,logistics!G:I,3,0)","v":{"$error":"#N/A"}},"ARC-2015-1904","Wayforward_of_Abstract_Information_Model","LG Electronics",{"$f":"VLOOKUP(D77,AllDocs!A:D,4,0)","v":"2015-05-12T10:22:09"},"Draft","CR","TS-0001 (WI-0002)",2,"Discussion"]
[null,{"$f":"VLOOKUP(A78,logistics!G:I,2,0)","v":{"$error":"#N/A"}},{"$f":"VLOOKUP(A78,logistics!G:I,3,0)","v":{"$error":"#N/A"}},"MAS-2015-0558R02","Device Management related Questions to oneM2M","ORANGE (ETSI)",{"$f":"VLOOKUP(D78,AllDocs!A:D,4,0)","v":{"$error":"#N/A"}},"Draft","INC","TS-0001 (WI-0002)",1,"Discussion"]
[null,{"$f":"VLOOKUP(A79,logistics!G:I,2,0)","v":{"$error":"#N/A"}},{"$f":"VLOOKUP(A79,logistics!G:I,3,0)","v":{"$error":"#N/A"}},null,null,null,{"$f":"VLOOKUP(D79,AllDocs!A:D,4,0)","v":{"$error":"#N/A"}}]
[null,{"$f":"VLOOKUP(A80,logistics!G:I,2,0)","v":{"$error":"#N/A"}},{"$f":"VLOOKUP(A80,logistics!G:I,3,0)","v":{"$error":"#N/A"}},"ARC-2015-1829","TS-0014-LWM2M_Object_Subscription","Tim Carey, ALU, timothy.carey@alcatel-lucent.com",{"$f":"VLOOKUP(D80,AllDocs!A:D,4,0)","v":"2015-04-04T00:59:09"},"Draft","INC","TS-0014 (WI-0024)",2,"Decision"]
[null,{"$f":"VLOOKUP(A81,logistics!G:I,2,0)","v":{"$error":"#N/A"}},{"$f":"VLOOKUP(A81,logistics!G:I,3,0)","v":{"$error":"#N/A"}},"ARC-2015-1829R01","TS-0014-LWM2M_Object_Subscription","Tim Carey, ALU, timothy.carey@alcatel-lucent.com",{"$f":"VLOOKUP(D81,AllDocs!A:D,4,0)","v":"2015-04-09T17:54:53"},"Draft","INC","TS-0014 (WI-0024)",2,"Decision"]
[null,{"$f":"VLOOKUP(A82,logistics!G:I,2,0)","v":{"$error":"#N/A"}},{"$f":"VLOOKUP(A82,logistics!G:I,3,0)","v":{"$error":"#N/A"}},"ARC-2015-1829R02","TS-0014-LWM2M_Object_Subscription","Tim Carey, ALU, timothy.carey@alcatel-lucent.com",{"$f":"VLOOKUP(D82,AllDocs!A:D,4,0)","v":"2015-04-13T17:25:18"},"Draft","INC","TS-0014 (WI-0024)",2,"Decision"]
[null,{"$f":"VLOOKUP(A83,logistics!G:I,2,0)","v":{"$error":"#N/A"}},{"$f":"VLOOKUP(A83,logistics!G:I,3,0)","v":{"$error":"#N/A"}},"ARC-2015-1858","TS-0014-LWM2M_IPE_Administration","ALU (TIA)",{"$f":"VLOOKUP(D83,AllDocs!A:D,4,0)","v":"2015-05-08T13:53:04"},"Draft","INC","TS-0014 (WI-0024)",2,"Decision"]
[null,{"$f":"VLOOKUP(A84,logistics!G:I,2,0)","v":{"$error":"#N/A"}},{"$f":"VLOOKUP(A84,logistics!G:I,3,0)","v":{"$error":"#N/A"}},"ARC-2015-1895","TS-0014-LWM2M_Object Transport and Interworking","Gemalto N.V",{"$f":"VLOOKUP(D84,AllDocs!A:D,4,0)","v":"00:00:00"},"Draft","INC","TS-0014 (WI-0024)",2,"Decision"]
[null,{"$f":"VLOOKUP(A85,logistics!G:I,2,0)","v":{"$error":"#N/A"}},{"$f":"VLOOKUP(A85,logistics!G:I,3,0)","v":{"$error":"#N/A"}},null,null,null,{"$f":"VLOOKUP(D85,AllDocs!A:D,4,0)","v":{"$error":"#N/A"}}]
[null,{"$f":"VLOOKUP(A86,logistics!G:I,2,0)","v":{"$error":"#N/A"}},{"$f":"VLOOKUP(A86,logistics!G:I,3,0)","v":{"$error":"#N/A"}},"ARC-2015-1843","TS-0007-Service_Components-V0_8_1_Draft-Baseline","ALU (TIA)",{"$f":"VLOOKUP(D86,AllDocs!A:D,4,0)","v":"2015-05-06T13:11:45"},"Draft","INC","TS-0007 (WI-0011)",2,"Decision"]
[null,{"$f":"VLOOKUP(A87,logistics!G:I,2,0)","v":{"$error":"#N/A"}},{"$f":"VLOOKUP(A87,logistics!G:I,3,0)","v":{"$error":"#N/A"}},null,null,null,{"$f":"VLOOKUP(D87,AllDocs!A:D,4,0)","v":{"$error":"#N/A"}}]
[null,{"$f":"VLOOKUP(A88,logistics!G:I,2,0)","v":{"$error":"#N/A"}},{"$f":"VLOOKUP(A88,logistics!G:I,3,0)","v":{"$error":"#N/A"}},null,null,null,{"$f":"VLOOKUP(D88,AllDocs!A:D,4,0)","v":{"$error":"#N/A"}}]
["Day4-4 (14:30-16:00)",{"$f":"VLOOKUP(A89,logistics!G:I,2,0)","v":"Adhoc"},{"$f":"VLOOKUP(A89,logistics!G:I,3,0)","v":"MAS"},"<TBD>",null,null,{"$f":"VLOOKUP(D89,AllDocs!A:D,4,0)","v":{"$error":"#N/A"}}]
[null,{"$f":"VLOOKUP(A90,logistics!G:I,2,0)","v":{"$error":"#N/A"}},{"$f":"VLOOKUP(A90,logistics!G:I,3,0)","v":{"$error":"#N/A"}},null,null,null,{"$f":"VLOOKUP(D90,AllDocs!A:D,4,0)","v":{"$error":"#N/A"}}]
[null,{"$f":"VLOOKUP(A91,logistics!G:I,2,0)","v":{"$error":"#N/A"}},{"$f":"VLOOKUP(A91,logistics!G:I,3,0)","v":{"$error":"#N/A"}},null,null,null,{"$f":"VLOOKUP(D91,AllDocs!A:D,4,0)","v":{"$error":"#N/A"}}]
["Day4-5 (16:30-18:00)",{"$f":"VLOOKUP(A92,logistics!G:I,2,0)","v":"Breakout"},{"$f":"VLOOKUP(A92,logistics!G:I,3,0)","v":"ARC/MAS"},"<TBD>",null,null,{"$f":"VLOOKUP(D92,AllDocs!A:D,4,0)","v":{"$error":"#N/A"}}]
[null,{"$f":"VLOOKUP(A93,logistics!G:I,2,0)","v":{"$error":"#N/A"}},{"$f":"VLOOKUP(A93,logistics!G:I,3,0)","v":{"$error":"#N/A"}},null,null,null,{"$f":"VLOOKUP(D93,AllDocs!A:D,4,0)","v":{"$error":"#N/A"}}]
[null,{"$f":"VLOOKUP(A94,logistics!G:I,2,0)","v":{"$error":"#N/A"}},{"$f":"VLOOKUP(A94,logistics!G:I,3,0)","v":{"$error":"#N/A"}},null,null,null,{"$f":"VLOOKUP(D94,AllDocs!A:D,4,0)","v":{"$error":"#N/A"}}]
["Day5-1 (08:00-09:30)",{"$f":"VLOOKUP(A95,logistics!G:I,2,0)","v":"Breakout"},{"$f":"VLOOKUP(A95,logistics!G:I,3,0)","v":"MAS"},"<CLOSE>",null,null,{"$f":"VLOOKUP(D95,AllDocs!A:D,4,0)","v":{"$error":"#N/A"}}]
[null,{"$f":"VLOOKUP(A96,logistics!G:I,2,0)","v":{"$error":"#N/A"}},{"$f":"VLOOKUP(A96,logistics!G:I,3,0)","v":{"$error":"#N/A"}},null,null,null,{"$f":"VLOOKUP(D96,AllDocs!A:D,4,0)","v":{"$error":"#N/A"}}]
[null,{"$f":"VLOOKUP(A97,logistics!G:I,2,0)","v":{"$error":"#N/A"}},{"$f":"VLOOKUP(A97,logistics!G:I,3,0)","v":{"$error":"#N/A"}},null,null,null,{"$f":"VLOOKUP(D97,AllDocs!A:D,4,0)","v":{"$error":"#N/A"}}]
[null,{"$f":"VLOOKUP(A98,logistics!G:I,2,0)","v":{"$error":"#N/A"}},{"$f":"VLOOKUP(A98,logistics!G:I,3,0)","v":{"$error":"#N/A"}},null,null,null,{"$f":"VLOOKUP(D98,AllDocs!A:D,4,0)","v":{"$error":"#N/A"}}]

{"sheet":"logistics","index":1,"n_rows":25,"n_cols":12,"rows_kept":25,"cut":false,"hidden":false,"merged":[]}
["WeekDay","SlotTime","Day","Slot","Time","AllSlots","MAS Slots","Rooms","WGs","WIs","Short Name","Deadline (GMT)"]
["Day1","09:00-11:00","Day1",1,"09:00-11:00",{"$f":"CONCATENATE(C2,\"-\",D2,\" (\",E2,\")\")","v":"Day1-1 (09:00-11:00)"},null,null,null,"TR-0001 (WI-0015)","Use Case Continuation","2015-05-11"]
["Day2","11:00-11:30","Day1",2,"11:30-13:00",{"$f":"CONCATENATE(C3,\"-\",D3,\" (\",E3,\")\")","v":"Day1-2 (11:30-13:00)"},"Day1-2 (11:30-13:00)","Main","MAS","TR-0007 (WI-0005)","Semantic Study"]
["Day3","11:30-13:00","Day1",3,"14:30-16:00","Day1-3 (14:30-16:00)","Day1-3 (14:30-16:00)","Adhoc","MAS","TR-0014 (WI-0018)","oneM2M AllJoyn Interworking"]
["Day4","13:00-14:30","Day1",4,"16:30-18:00",{"$f":"CONCATENATE(C5,\"-\",D5,\" (\",E5,\")\")","v":"Day1-4 (16:30-18:00)"},null,null,null,"TR-0017 (WI-0017)","Home Domain Abstract Information Model"]
["Day5","14:30-16:00","Day2",1,"08:00-09:30","Day2-1 (08:00-09:30)",null,null,null,"TS-0001 (WI-0002)","Architecture"]
[null,"16:00-16:30","Day2",2,"09:30-11:00","Day2-2 (09:30-11:00)","Day2-2 (09:30-11:00)","Adhoc","MAS","TS-0002 (WI-0001)","Requirement"]
[null,"16:30-18:00","Day2",3,"11:30-13:00","Day2-3 (11:30-13:00)","Day2-3 (11:30-13:00)","Breakout","MAS","TS-0004 (WI-0009)","Protocol Core"]
[null,null,"Day2",4,"14:30-16:00","Day2-4 (14:30-16:00)",null,null,null,"TS-0005 (WI-0010)","OMA Mapping"]
[null,null,"Day2",5,"16:30-18:00","Day2-5 (16:30-18:00)","Day2-5 (16:30-18:00)","Breakout","MAS","TS-0006 (WI-0010)","BBF Mapping"]
[null,"08:00-09:30","Day3",1,"08:00-09:30","Day3-1 (08:00-09:30)",null,null,null,"TS-0007 (WI-0011)","SOA Architecture"]
[null,"09:30-11:00","Day3",2,"09:30-11:00","Day3-2 (09:30-11:00)","Day3-2 (09:30-11:00)","Main","PRO/MAS","TS-0012 (WI-0025)","oneM2M Base Ontology"]
[null,"11:00-11:30","Day3",3,"11:30-13:00","Day3-3 (11:30-13:00)","Day3-3 (11:30-13:00)","Breakout","MAS","TS-0014 (WI-0024)","LWM2M_Interworking"]
[null,"11:30-13:00","Day3",4,"14:30-16:00","Day3-4 (14:30-16:00)","Day3-4 (14:30-16:00)","Adhoc","MAS"]
[null,"13:00-14:30","Day3",5,"16:30-18:00","Day3-5 (16:30-18:00)"]
[null,"14:30-16:00","Day4",1,"08:00-09:30","Day4-1 (08:00-09:30)"]
[null,"16:00-16:30","Day4",2,"09:30-11:00","Day4-2 (09:30-11:00)"]
[null,"16:30-18:00","Day4",3,"11:30-13:00","Day4-3 (11:30-13:00)","Day4-3 (11:30-13:00)","Main","ARC/MAS"]
[null,null,"Day4",4,"14:30-16:00","Day4-4 (14:30-16:00)","Day4-4 (14:30-16:00)","Adhoc","MAS"]
[null,null,"Day4",5,"16:30-18:00","Day4-5 (16:30-18:00)","Day4-5 (16:30-18:00)","Breakout","ARC/MAS"]
[null,null,"Day5",1,"08:00-09:30","Day5-1 (08:00-09:30)","Day5-1 (08:00-09:30)","Breakout","MAS"]
[null,null,"Day5",2,"09:30-11:00","Day5-2 (09:30-11:00)"]
[null,null,"Day5",3,"11:30-13:00","Day5-3 (11:30-13:00)"]
[null,null,"Day5",4,"14:00-16:30","Day5-4 (14:00-16:30)"]
[null,null,null,null,null,"- ()"]

{"sheet":"AllDocs","index":2,"n_rows":276,"n_cols":8,"rows_kept":276,"cut":false,"hidden":false,"merged":[]}
[]
["TP-2015-0682R05","TP17 timeslot schedule initial","TP leadership","2015-05-18T08:40:02","Draft","INC",null,"TP 17"]
["ARC-2015-1793R01","App-ID format","FUJITSU","2015-05-10T23:24:49","Draft","CR",null,"ARC 17"]
["ARC-2015-1829","TS-0014-LWM2M_Object_Subscription","Tim Carey, ALU, timothy.carey@alcatel-lucent.com","2015-04-04T00:59:09","Draft","INC",null,"ARC 17"]
["ARC-2015-1829R01","TS-0014-LWM2M_Object_Subscription","Tim Carey, ALU, timothy.carey@alcatel-lucent.com","2015-04-09T17:54:53","Draft","INC",null,"ARC 17"]
["ARC-2015-1829R02","TS-0014-LWM2M_Object_Subscription","Tim Carey, ALU, timothy.carey@alcatel-lucent.com","2015-04-13T17:25:18","Draft","INC",null,"ARC 17"]
["ARC-2015-1835R01","CR resourceStatus","LG Electronics","2015-04-24T01:13:40","Draft","CR",null,"ARC 17"]
["ARC-2015-1835R02","CR resourceStatus","LG Electronics","2015-05-13T02:55:21","Draft","CR",null,"ARC 17"]
["ARC-2015-1843","TS-0007-Service_Components-V0_8_1_Draft-Baseline","ALU (TIA)","2015-05-06T13:11:45","Draft","INC",null,"ARC 17"]
["ARC-2015-1844","semanticDescriptor resource","Omar Elloumi, ALU (ATIS), Martin Bauer NEC Europe Ltd. (ETSI)  Joerg Swetina, NEC Europe Ltd. (ETSI)  Ataru Kobayashi, NEC Corporation (TTC)  Mahdi Ben Alaya, LAAS-CNRS (ETSI)  Khalil Drira, LAAS-CNRS (ETSI)","2015-05-10T11:19:19","Draft","CR",null,"ARC 17"]
["ARC-2015-1845","CR for locationPolicy Procedures","LG Electronics","2015-05-07T12:19:18","Draft","CR",null,"ARC 17"]
["ARC-2015-1848","Discussion paper for interworking with 3GPP R13 MTC","AT&T; Intel Corporation","2015-05-07T19:14:23","Draft","AG",null,"ARC 17"]
["ARC-2015-1849","CR to TS 0001 for 3GPP Interface update","AT&T, Intel Corperation","2015-05-07T19:18:01","Draft","AG",null,"ARC 17"]
["ARC-2015-1850","locationUpdatePeriod UPDATE","ZTE","2015-05-08T07:28:42","Draft","CR",null,"ARC 17"]
["ARC-2015-1851","CR container clarification","LG Electronics","2015-05-08T09:11:29","Draft","CR",null,"ARC 17"]
["ARC-2015-1852","CR container clarification(R2)","LG Electronics","2015-05-08T09:13:12","Draft","CR",null,"ARC 17"]
["ARC-2015-1853","CR contentInstance clarification","LG Electronics","2015-05-08T09:18:32","Draft","CR",null,"ARC 17"]
["ARC-2015-1853R01","CR contentInstance clarification","LG Electronics","2015-05-08T22:37:15","Draft","CR",null,"ARC 17"]
["ARC-2015-1854","CR contentInstance clarification(R2)","LG Electronics","2015-05-08T09:18:50","Draft","CR",null,"ARC 17"]
["ARC-2015-1854R01","CR contentInstance clarification(R2)","LG Electronics","2015-05-08T22:37:55","Draft","CR",null,"ARC 17"]
["ARC-2015-1855","CR parameter default values","LG Electronics","2015-05-08T09:19:07","Draft","CR",null,"ARC 17"]
["ARC-2015-1856","CR parameter default values(R2)","LG Electronics","2015-05-08T09:19:22","Draft","CR",null,"ARC 17"]
["ARC-2015-1857","CR for Clarification on batchNotify attribute","VIA Telecom","2015-05-08T09:41:21","Draft","CR",null,"ARC 17"]
["ARC-2015-1858","TS-0014-LWM2M_IPE_Administration","ALU (TIA)","2015-05-08T13:53:04","Draft","INC",null,"ARC 17"]
["ARC-2015-1859","CR stateTag clarification","LG Electronics","2015-05-08T23:40:15","Draft","CR",null,"ARC 17"]
["ARC-2015-1860","Summary of Request Message Parameters Release1","KT","2015-05-09T07:08:42","Draft","CR",null,"ARC 17"]
["ARC-2015-1861","Summary of Request Message Parameters Release2","KT","2015-05-09T07:35:23","Draft","CR",null,"ARC 17"]
["ARC-2015-1862","pollingChannel multiplicity","LG Electronics","2015-05-09T07:23:57","Draft","CR",null,"ARC 17"]
["ARC-2015-1863","pollingChannel multiplicity mirror","LG Electronics","2015-05-09T07:25:50","Draft","CR",null,"ARC 17"]
["ARC-2015-1864","Schedule for AE resource_mirror","LG Electronics","2015-05-09T07:27:59","Draft","CR",null,"ARC 17"]
["ARC-2015-1865","Asynchronous Case Release1","KT","2015-05-09T07:43:00","Draft","CR",null,"ARC 17"]
["ARC-2015-1866","Asynchronous Case Release2","KT","2015-05-09T07:49:22","Draft","CR",null,"ARC 17"]
["ARC-2015-1867","General Procedure for Location Request Release1","KT","2015-05-09T07:59:25","Draft","CR",null,"ARC 17"]
["ARC-2015-1868","General Procedure for Location Request Release2","KT","2015-05-09T08:03:46","Draft","CR",null,"ARC 17"]
["ARC-2015-1869","Structure of < remoteCSE> resource Release1","KT","2015-05-09T08:09:46","Draft","CR",null,"ARC 17"]
["ARC-2015-1870","Structure of < remoteCSE> resource Release2","KT","2015-05-09T08:13:26","Draft","CR",null,"ARC 17"]
["ARC-2015-1871","Resource Type AE Release1","KT","2015-05-09T08:19:28","Draft","CR",null,"ARC 17"]
["ARC-2015-1872","Resource Type AE Release2","KT","2015-05-09T08:22:13","Draft","CR",null,"ARC 17"]
["ARC-2015-1873","Structure of container resource Release1","KT","2015-05-09T08:29:55","Draft","CR",null,"ARC 17"]
["ARC-2015-1874","Structure of container resource Release2","KT","2015-05-09T08:35:42","Draft","CR",null,"ARC 17"]
["ARC-2015-1875","Structure of group resource Release1","KT","2015-05-09T08:44:10","Draft","CR",null,"ARC 17"]
["ARC-2015-1876","Structure of group resource Release2","KT","2015-05-09T08:48:58","Draft","CR",null,"ARC 17"]
["ARC-2015-1877","Resource Type schedule Release1","KT","2015-05-09T09:14:30","Draft","CR",null,"ARC 17"]
["ARC-2015-1878","Resource Type schedule Release2","KT","2015-05-09T09:18:07","Draft","CR",null,"ARC 17"]
["ARC-2015-1879","Structure of serviceSubscribeNode resource Release1","KT","2015-05-09T09:26:18","Draft","CR",null,"ARC 17"]
["ARC-2015-1880","Structure of serviceSubscribeNode resource Release2","KT","2015-05-09T09:30:18","Draft","CR",null,"ARC 17"]
["ARC-2015-1881","Structure of locationPolicy resource Release2","KT","2015-05-09T09:46:16","Draft","CR",null,"ARC 17"]
["ARC-2015-1882","Non-registration related CREATE procedure Release1","KT","2015-05-09T09:54:12","Draft","CR",null,"ARC 17"]
["ARC-2015-1882R01","Non-registration related CREATE procedure Release1","KT","2015-05-17T08:59:47","Draft","CR",null,"ARC 17"]
["ARC-2015-1883","Non-registration related CREATE procedure Release2","KT","2015-05-09T09:57:08","Draft","CR",null,"ARC 17"]
["ARC-2015-1883R01","Non-registration related CREATE procedure Release2","KT","2015-05-17T09:06:51","Draft","CR",null,"ARC 17"]
["ARC-2015-1884","RETRIEVE Release1","KT","2015-05-09T10:07:05","Draft","CR",null,"ARC 17"]
["ARC-2015-1884R01","RETRIEVE Release1","KT","2015-05-17T09:08:39","Draft","CR",null,"ARC 17"]
["ARC-2015-1885","RETRIEVE Release2","KT","2015-05-09T10:11:35","Draft","CR",null,"ARC 17"]
["ARC-2015-1885R01","RETRIEVE Release2","KT","2015-05-17T09:10:07","Draft","CR",null,"ARC 17"]
["ARC-2015-1886","CSE Registration procedure Release1","KT","2015-05-09T10:21:46","Draft","CR",null,"ARC 17"]
["ARC-2015-1886R01","CSE Registration procedure Release1","KT","2015-05-17T09:12:52","Draft","CR",null,"ARC 17"]
["ARC-2015-1887","CSE Registration procedure Release2","KT","2015-05-09T10:25:08","Draft","CR",null,"ARC 17"]
["ARC-2015-1887R01","CSE Registration procedure Release2","KT","2015-05-17T09:15:50","Draft","CR",null,"ARC 17"]
["ARC-2015-1888","UPDATE Release1","KT","2015-05-09T13:04:35","Draft","CR",null,"ARC 17"]
["ARC-2015-1889","UPDATE Release2","KT","2015-05-09T13:08:38","Draft","CR",null,"ARC 17"]
["ARC-2015-1890","Non-deregistration related DELETE procedure Release1","KT","2015-05-09T13:14:15","Draft","CR",null,"ARC 17"]
["ARC-2015-1891","Non-deregistration related DELETE procedure Release2","KT","2015-05-09T13:17:31","Draft","CR",null,"ARC 17"]
["ARC-2015-1892","NOTIFY Release1","KT","2015-05-09T13:23:59","Draft","CR",null,"ARC 17"]
["ARC-2015-1893","NOTIFY Release2","KT","2015-05-09T13:28:03","Draft","CR",null,"ARC 17"]
["ARC-2015-1894","schedule Resource Procedures Release2","KT","2015-05-09T13:43:01","Draft","INC",null,"ARC 17"]
["ARC-2015-1895","TS-0014-LWM2M_Object Transport and Interworking","Gemalto N.V",null,"Draft","INC",null,"ARC 17"]
["ARC-2015-1896","procedure_notification_target_removal","Huawei, LGE","2015-05-10T07:30:16","Draft","CR",null,"ARC 17"]
["ARC-2015-1897","App-ID Use Cases, Syntax and Attributes","Darold Hemphill (iconectiv)","2015-05-10T15:18:43","Draft","CR",null,"ARC 17"]
["ARC-2015-1897R01","App-ID Use Cases, Syntax and Attributes","Darold Hemphill (iconectiv)","2015-05-14T16:06:35","Draft","CR",null,"ARC 17"]
["ARC-2015-1898","App-ID Use Cases, Syntax and Attributes","Darold Hemphill (iconectiv)","2015-05-10T15:24:04","Draft","CR",null,"ARC 17"]
["ARC-2015-1898R01","App-ID Use Cases, Syntax and Attributes","Darold Hemphill (iconectiv)","2015-05-14T16:07:22","Draft","CR",null,"ARC 17"]
["ARC-2015-1899","Section10-Editorial-Clarifications-And-Alignment","Yingjie Hong, ZTE","2015-05-10T15:39:57","Draft","CR",null,"ARC 17"]
["ARC-2015-1900","Section10-Editorial-Clarifications-And-Alignment(R2)","Yingjie Hong, ZTE","2015-05-10T15:44:36","Draft","CR",null,"ARC 17"]
["ARC-2015-1901","CR stateTag clarification(R2)","LG Electronics","2015-05-11T07:30:57","Draft","CR",null,"ARC 17"]
["ARC-2015-1902","CR_structured_resource_ID_clarification","LG Electronics","2015-05-11T07:31:23","Draft","CR",null,"ARC 17"]
["ARC-2015-1903","CR_structured_resource_ID_clarification(R2)","LG Electronics","2015-05-11T07:31:41","Draft","CR",null,"ARC 17"]
["ARC-2015-1904","Wayforward_of_Abstract_Information_Model","LG Electronics","2015-05-12T10:22:09","Draft","CR",null,"ARC 17"]
["ARC-2015-1905","CR result content parameter default value for delete operation","LG Electronics","2015-05-14T09:04:44","Draft","CR",null,"ARC 17"]
["ARC-2015-1906","CR AE child resource removal from remoteCSE resource","LG Electronics","2015-05-14T09:05:11","Draft","CR",null,"ARC 17"]
["ARC-2015-1907","CR AE child resource removal from remoteCSE resource(R2)","LG Electronics","2015-05-14T09:05:30","Draft","CR",null,"ARC 17"]
["ARC-2015-1908","CR for result content parameter clarification","KETI","2015-05-14T15:49:42","Draft","INC",null,"ARC 17"]
["ARC-2015-1908R01","CR for result content parameter clarification","KETI","2015-05-15T05:15:06","Draft","CR",null,"ARC 17"]
["MAS-2015-0534R01","DeviceConfigurationUseCases","FUJITSU","2015-05-10T14:13:47","Draft","INC",null,"MAS 17"]
["MAS-2015-0546","applying SAREF (as an example) to oneM2M","Omar Elloumi, ALU (ATIS)","2015-04-19T13:00:26","Noted","INC",null,"ARC 17"]
["MAS-2015-0550","Update TS-0006 XML namespace","ALU (TIA)","2015-04-29T06:34:57","Draft","CR",null,"MAS 17"]
["MAS-2015-0550R01","Update TS-0006 XML namespace","ALU (TIA)","2015-05-19T04:40:06","Draft","CR",null,"MAS 17"]
["MAS-2015-0552R03","CR_to_Add_Semantic_Descriptor_in_TR-0007","NEC, Alcatel-Lucent","2015-05-13T10:58:11","Draft","CR",null,"MAS 17"]
["MAS-2015-0555","TS-0005-LWM2M-V1_0_1_Fix","Gemalto N.V","2015-05-04T15:30:56","Draft","CR",null,"MAS 17"]
["MAS-2015-0555R01","TS-0005-LWM2M-V1_0_1_Fix","Gemalto N.V","2015-05-18T02:14:16","Draft","CR",null,"MAS 17"]
["MAS-2015-0555R02","TS-0005-LWM2M-V1_0_1_Fix","Gemalto N.V","2015-05-19T06:44:57","Draft","CR",null,"MAS 17"]
["MAS-2015-0556","TS-0005-LWM2M-V1_0_1_Fix Mirror","Gemalto N.V","2015-05-04T15:32:27","Draft","CR",null,"MAS 17"]
["MAS-2015-0556R01","TS-0005-LWM2M-V1_0_1_Fix Mirror","Gemalto N.V","2015-05-18T02:13:07","Draft","CR",null,"MAS 17"]
["MAS-2015-0557","TR-0017 support of HGI SmartHome Device Template","HGI","2015-05-08T14:28:09","Draft","INC",null,"MAS 17"]
["MAS-2015-0558","Device Management related Questions to oneM2M","ORANGE (ETSI)","2015-05-10T20:33:41","Draft","INC",null,"MAS 17"]
["MAS-2015-0558R01","Device Management related Questions to oneM2M","ORANGE (ETSI)","2015-05-19T03:38:18","Draft","INC",null,"MAS 17"]
["MAS-2015-0559","Contribution to TR-0017 SH-Abstract-Information-Model","ORANGE (ETSI)",null,"Draft","INC",null,"MAS 17"]
["MAS-2015-0560","components of the base ontology","China Unicom","2015-05-08T06:49:09","Draft","CR",null,"MAS 17"]
["MAS-2015-0560R01","components of the base ontology","China Unicom","2015-05-08T06:54:09","Draft","INC",null,"MAS 17"]
["MAS-2015-0560R02","components of the base ontology","China Unicom","2015-05-14T04:18:54","Draft","INC",null,"MAS 17"]
["MAS-2015-0561","methods for jointly using ontologies","China Unicom","2015-05-08T06:51:57","Draft","INC",null,"MAS 17"]
["MAS-2015-0562","Discussions on semantic description enablement","China Unicom","2015-05-08T09:48:00","Draft","INC",null,"MAS 17"]
["MAS-2015-0563","Update on TS-0012 on general principles and generic interworking","NEC","2015-05-11T19:30:18","Draft","INC",null,"MAS 17"]
["MAS-2015-0564","oneM2M base ontology proposal","Omar Elloumi Alcatel-Lucent (ATIS),  Mahdi Ben Alaya LAAS-CNRS (ETSI),  Khalil Drira LAAS-CNRS (ETSI)","2015-05-10T11:39:12","Draft","INC",null,"MAS 17"]
["MAS-2015-0565","Applying IOCD to oneM2M","Huawei Technologies, Haier, Hitachi, China Unicom, Datang, China academy of information and communications technology","2015-05-10T14:17:14","Draft","INC",null,"MAS 17"]
["MAS-2015-0565R01","Applying IOCD to oneM2M","Huawei Technologies, Haier, Hitachi, China Unicom, Datang, China academy of information and communications technology","2015-05-14T02:32:06","Draft","INC",null,"MAS 17"]
["MAS-2015-0566","Mapping SAREF to oneM2M - initial discussion draft","Omar Elloumi, ALU (ATIS)","2015-05-10T16:53:50","Draft","INC",null,"MAS 17"]
["MAS-2015-0567","TR0007 sec8_4_1","InterDigital","2015-05-10T17:25:34","Draft","CR",null,"MAS 17"]
["MAS-2015-0568","Ontology Management Considerrations","InterDigital",null,"Draft","INC",null,"MAS 17"]
["MAS-2015-0568R01","Ontology Architectural Support Considerrations","InterDigital","2015-05-10T17:25:58","Draft","INC",null,"MAS 17"]
["MAS-2015-0568R02","Ontology Architectural Support Considerrations","InterDigital","2015-05-18T05:34:32","Draft","INC",null,"MAS 17"]
["MAS-2015-0569","oneM2M_architecture_semantics","Modacom","2015-05-10T18:04:32","Draft","INC",null,"MAS 17"]
["MAS-2015-0569R01","oneM2M_architecture_semantics","Modacom","2015-05-18T06:48:30","Draft","INC",null,"MAS 17"]
["MAS-2015-0570","semnatics_data_analytics","Modacom","2015-05-10T18:06:32","Draft","INC",null,"MAS 17"]
["MAS-2015-0570R01","semnatics_data_analytics","Modacom","2015-05-18T06:46:57","Draft","INC",null,"MAS 17"]
["MAS-2015-0571","Analysis from ECHONET on TR-0017","NTT","2015-05-13T06:22:11","Draft","CR",null,"MAS 17"]
["MAS-2015-0571R01","Analysis from ECHONET on TR-0017","NTT","2015-05-19T00:39:20","Draft","CR",null,"MAS 17"]
["MAS-2015-0571R02","Analysis from ECHONET on TR-0017","NTT","2015-05-19T09:23:34","Draft","CR",null,"MAS 17"]
["MAS-2015-0571R03","Analysis from ECHONET on TR-0017","NTT","2015-05-19T09:27:03","Draft","CR",null,"MAS 17"]
["MAS-2015-0572","Extension to Device Sets on TR-0017","NTT","2015-05-13T06:21:25","Draft","CR",null,"MAS 17"]
["MAS-2015-0572R01","Extension to Device Sets on TR-0017","NTT","2015-05-19T04:35:00","Draft","CR",null,"MAS 17"]
["MAS-2015-0572R02","Extension to Device Sets on TR-0017","NTT","2015-05-19T09:27:28","Draft","CR",null,"MAS 17"]
["MAS-2015-0573","Agenda MAS#17","Yongjing Zhang (Huawei, Chair)","2015-05-14T09:11:03","Draft","AG",null,"MAS 17"]
["MAS-2015-0573R01","Agenda MAS#17","Yongjing Zhang (Huawei, Chair)","2015-05-18T04:02:36","Draft","AG",null,"MAS 17"]
["MAS-2015-0574","MAS#17 Document Allocation","Yongjing Zhang (Huawei, Chair)","2015-05-14T09:10:42","Draft","AG",null,"MAS 17"]
["MAS-2015-0574R01","MAS#17 Document Allocation","Yongjing Zhang (Huawei, Chair)","2015-05-18T10:24:32","Draft","AG",null,"MAS 17"]
["MAS-2015-0575","Clarification_of_abstract_information_model_Approach_1","LG Electronics","2015-05-12T10:18:12","Draft","CR",null,"MAS 17"]
["MAS-2015-0575R01","Clarification_of_abstract_information_model_Approach_1","LG Electronics","2015-05-13T08:38:08","Draft","CR",null,"MAS 17"]
["MAS-2015-0575R02","Clarification_of_abstract_information_model_Approach_1","LG Electronics","2015-05-19T08:56:20","Draft","CR",null,"MAS 17"]
["MAS-2015-0576","Wayforward of Abstract Information Model","LG Electronics","2015-05-12T10:20:26","Draft","CR",null,"MAS 17"]
["MAS-2015-0577","Minutes MAS TP17","secretary",null,"Draft","MIN",null,"MAS 17"]
["MAS-2015-0578","SemanticDiscoveryApproach","NEC","2015-05-18T00:02:46","Draft","INC",null,"MAS 17"]
["MAS-2015-0579","LS answer to ITU-T SG17 on the use of OID for IoT","KETI, WG2,5","2015-05-19T01:43:14","Draft","LS",null,"MAS 17"]
["MAS-2015-0580","Align Resource Names and Attributes","ALU (TIA)","2015-05-19T08:17:15","Draft","CR",null,"MAS 17"]
["PRO-2015-0749R01","NWI proposal for WebSocket binding","FUJITSU","2015-05-09T13:36:31","Draft","INC",null,"PRO 17"]
["PRO-2015-0751","DRAFT_TS-0004-V1_1_0","TS-0004 Rapporteurs","2015-04-09T10:52:28","Noted","INC",null,"PRO 17"]
["PRO-2015-0757","CR for TS-0004 ResponseStatusCode","QUALCOMM","2015-04-30T10:00:27","Draft","CR",null,"PRO 17"]
["PRO-2015-0758R01","CR for TS-0004 ShortNames","QUALCOMM","2015-05-10T23:51:48","Draft","CR",null,"PRO 17"]
["PRO-2015-0759","CR for TS-0004 ContentSize","QUALCOMM","2015-04-30T10:52:42","Draft","CR",null,"PRO 17"]
["PRO-2015-0762","Short Name for Resource Type","LG Electronics","2015-05-04T02:57:04","Draft","CR",null,"PRO 17"]
["PRO-2015-0763","FilterUsage Correction","LG Electronics","2015-05-07T11:44:42","Draft","CR",null,"PRO 17"]
["PRO-2015-0763R01","FilterUsage Correction","LG Electronics","2015-05-14T03:37:15","Draft","CR",null,"PRO 17"]
["PRO-2015-0764","AE_Resource_Type_XSD_Correction","LG Electronics","2015-05-14T03:38:08","Draft","CR",null,"PRO 17"]
["PRO-2015-0765","CR contentInstance","LG Electronics","2015-05-08T09:27:35","Draft","CR",null,"PRO 17"]
["PRO-2015-0766","CR_data_type_for_resultPersistence","LG Electronics","2015-05-08T09:27:19","Draft","CR",null,"PRO 17"]
["PRO-2015-0767","CR_discResType","LG Electronics","2015-05-08T09:26:57","Draft","CR",null,"PRO 17"]
["PRO-2015-0768","CR_parameter_default_values","LG Electronics","2015-05-08T09:26:31","Draft","CR",null,"PRO 17"]
["PRO-2015-0769","RSC cleanup wayforward","LG Electronics, Fujitsu","2015-05-08T09:26:16","Draft","INC",null,"PRO 17"]
["PRO-2015-0770","CR_hanadling_of_timestamp_parameters","LG Electronics","2015-05-08T09:45:32","Draft","CR",null,"PRO 17"]
["PRO-2015-0771","CR for Clarification on batchNotify attribute","VIA Telecom","2015-05-08T09:50:20","Draft","CR",null,"PRO 17"]
["PRO-2015-0772","CR for MQTT content-type","KETI","2015-05-08T12:39:52","Draft","CR",null,"PRO 17"]
["PRO-2015-0773","pollingChannel multiplicity","LG Electronics","2015-05-09T07:29:29","Draft","CR",null,"PRO 17"]
["PRO-2015-0774","Schedule for AE resource","LG Electronics","2015-05-09T07:30:46","Draft","CR",null,"PRO 17"]
["PRO-2015-0775","WI-0009 Update","FUJITSU","2015-05-10T07:30:18","Draft","INC",null,"PRO 17"]
["PRO-2015-0776","Transfer contents of TS-0004 v.1.1.0 to v.2.0.0","FUJITSU","2015-05-10T07:57:43","Draft","INC",null,"PRO 17"]
["PRO-2015-0777","CR Removal of STE changes from V.1.1.0","FUJITSU","2015-05-10T16:33:03","Draft","CR",null,"PRO 17"]
["PRO-2015-0778","Generic resource request procedure for originator","KT","2015-05-10T13:30:46","Draft","CR",null,"PRO 17"]
["PRO-2015-0779","Generic response procedure for receiver","KT","2015-05-10T13:33:20","Draft","CR",null,"PRO 17"]
["PRO-2015-0780","location_update_period","Huawei Technologies Co., Ltd.","2015-05-10T15:34:45","Draft","CR",null,"PRO 17"]
["PRO-2015-0781","subscription_to_child_resource_R1","Huawei Technologies Co., Ltd.","2015-05-10T15:35:33","Draft","CR",null,"PRO 17"]
["PRO-2015-0782","subscription_to_child_resource_R2","Huawei Technologies Co., Ltd.","2015-05-10T15:36:31","Draft","CR",null,"PRO 17"]
["PRO-2015-0783","Clarification_on_XSD_usage","Qualcomm Inc. (TIA)","2015-05-10T23:48:53","Draft","CR",null,"PRO 17"]
["PRO-2015-0784","AnnexH_corrections","Qualcomm Inc. (TIA)","2015-05-10T23:49:32","Draft","CR",null,"PRO 17"]
["PRO-2015-0785","correction-cmdhDefaults","Qualcomm Inc. (TIA)","2015-05-10T23:49:47","Draft","CR",null,"PRO 17"]
["PRO-2015-0786","TS-0004-resourceName_correction","Qualcomm Inc. (TIA)","2015-05-10T23:50:04","Draft","CR",null,"PRO 17"]
["PRO-2015-0787","CR labels data type","LG Electronics","2015-05-11T07:32:23","Draft","CR",null,"PRO 17"]
["PRO-2015-0788","CR_MQTT_response_originator_receiver","LG Electronics","2015-05-11T07:32:45","Draft","CR",null,"PRO 17"]
["PRO-2015-0789","CR_Name_parameter_data_type","LG Electronics","2015-05-11T07:33:02","Draft","CR",null,"PRO 17"]
["PRO-2015-0790","TS-0004-XSD-ACP_related_corrections","Qualcomm, IBM","2015-05-11T20:14:13","Draft","CR",null,"PRO 17"]
["PRO-2015-0791","Agenda WG3/PRO","WG3/PRO Chairman","2015-05-14T10:13:24","Draft","AG",null,"PRO 17"]
["PRO-2015-0791R01","Agenda WG3/PRO","WG3/PRO Chairman","2015-05-17T08:55:47","Draft","AG",null,"PRO 17"]
["PRO-2015-0792","Virtual_Resource_XSD_Correction","LG Electronics","2015-05-13T01:56:23","Draft","CR",null,"PRO 17"]
["PRO-2015-0793","ShortName for oldest","LG Electronics","2015-05-13T02:04:57","Draft","CR",null,"PRO 17"]
["PRO-2015-0794","ShortName_for_groupID","LG Electronics","2015-05-13T02:17:20","Draft","CR",null,"PRO 17"]
["PRO-2015-0795","CR for Response Type Info","LG Electronics","2015-05-13T02:41:11","Draft","CR",null,"PRO 17"]
["PRO-2015-0796","CR AE child resource removal from remoteCSE resource","LG Electronics","2015-05-14T09:06:17","Draft","CR",null,"PRO 17"]
["PRO-2015-0797","CR for partial retrieve request cases","KETI","2015-05-15T05:13:07","Draft","CR",null,"PRO 17"]
["PRO-2015-0798","Add Representation in NotificationEvent","LG Electronics","2015-05-15T09:15:15","Draft","CR",null,"PRO 17"]
["REQ-2015-0549","DRAFT_Home_Domain_Enablement_TR-0013_V0_3_0","LG Electronics, KETI","2015-05-07T11:02:41","Draft","CR",null,"REQ 17"]
["REQ-2015-0550","Requirement_of_supporting_the_integrity_of_data_collection_monitoring","Huawei Technologies","2015-05-08T03:16:42","Draft","CR",null,"REQ 17"]
["REQ-2015-0551","CR_to_TR0018_Use_Case_6.1","Hitachi","2015-05-08T08:44:09","Draft","CR",null,"REQ 17"]
["REQ-2015-0552","Data Process for Inter-factory manufacturing","Hitachi","2015-05-08T09:02:54","Draft","INC",null,"REQ 17"]
["REQ-2015-0553","Requirements to support on-demand data collection for factories","Hitachi","2015-05-08T09:15:42","Draft","CR",null,"REQ 17"]
["REQ-2015-0554","Smart_Automatic_Driving","Hitachi","2015-05-08T09:30:43","Draft","INC",null,"REQ 17"]
["REQ-2015-0555","CR_Requirements for App/Field Domain Component Configuration","FUJITSU","2015-05-10T14:43:31","Draft","CR",null,"ARC 17"]
["REQ-2015-0556","Use_Case_access_control_using_group","Huawei Technologies Co., Ltd.","2015-05-10T15:30:34","Draft","CR",null,"REQ 17"]
["REQ-2015-0557","Use_Case_multicast_using_group","Huawei Technologies Co., Ltd.","2015-05-10T15:31:18","Draft","CR",null,"REQ 17"]
["REQ-2015-0558","group_requirements","Huawei Technologies Co., Ltd.","2015-05-10T15:31:58","Draft","CR",null,"REQ 17"]
["REQ-2015-0559","requirements_on_ETC","Yingjie Hong,","2015-05-10T15:35:18","Draft","AG",null,"REQ 17"]
["REQ-2015-0560","3GPP coverage of oneM2M requirements.","InterDigital, Intel","2015-05-10T17:23:37","Draft","INC",null,"REQ 17"]
["REQ-2015-0561","Use case for group registration","InterDigital","2015-05-10T17:25:13","Draft","INC",null,"REQ 17"]
["REQ-2015-0562","Aircraft_Construction_and_Maintenance","Hitachi and InterDigital","2015-05-10T17:40:56","Draft","INC",null,"REQ 17"]
["REQ-2015-0563","pCR_on_smart_meter_reading","China Mobile","2015-05-11T04:16:05","Draft","INC",null,"REQ 17"]
["REQ-2015-0564","Requirements for Efficient Communications","Nicolas Damour, Sierra Wireless","2015-05-11T09:10:37","Draft","INC",null,"REQ 17"]
["REQ-2015-0565","direct_communication_CSEs_requirements","LG Electronics","2015-05-12T12:50:31","Draft","CR",null,"REQ 17"]
["REQ-2015-0566","WG1 Document Allocation","Shelby Kiewel","2015-05-16T22:16:07","Draft","AG",null,"REQ 17"]
["SEC-2015-0506","Fix a wrong reference for Location-based ACP","LG Electronics","2015-05-06T11:09:22","Draft","CR",null,"SEC 17"]
["SEC-2015-0507","Use case of PPM","KDDI Corporation","2015-05-10T15:04:34","Draft","INC",null,"SEC 17"]
["SEC-2015-0508","App-ID Use Cases, Syntax and Attributes","Darold Hemphill (iconectiv)","2015-05-10T15:21:17","Withdrawn","CR",null,"SEC 17"]
["SEC-2015-0509","App-ID Use Cases, Syntax and Attributes","Darold Hemphill (iconectiv)","2015-05-10T15:25:58","Withdrawn","CR",null,"SEC 17"]
["SEC-2015-0510","TR-0012 CR 8_1_1 Object Security Review","Qualcomm Inc. (TIA)","2015-05-10T20:53:33","Draft","CR",null,"SEC 17"]
["SEC-2015-0511","What is end-to-end security","Qualcomm Inc. (TIA)","2015-05-10T21:42:11","Draft","INC",null,"SEC 17"]
["SEC-2015-0512","TR-0012 End-to-End Security Definition","Qualcomm Inc. (TIA)","2015-05-10T21:41:30","Draft","CR",null,"SEC 17"]
["SEC-2015-0513","App and Mgmt End-to-End Security Requirement","Qualcomm Inc. (TIA)","2015-05-11T00:28:24","Draft","INC",null,"SEC 17"]
["SEC-2015-0514","Primitive End-to-End Security Requirements","Qualcomm Inc. (TIA)","2015-05-11T00:27:55","Draft","INC",null,"SEC 17"]
["SEC-2015-0515","Security Requirements for WI-0023","Datang","2015-05-11T02:37:05","Draft","INC",null,"SEC 17"]
["SEC-2015-0516","Group_Authentication_Architecture","China Mobile","2015-05-11T02:59:23","Draft","INC",null,"SEC 17"]
["SEC-2015-0516R01","Group_Authentication_Architecture","China Mobile","2015-05-15T03:45:00","Draft","INC",null,"SEC 17"]
["SEC-2015-0517","Draft_CR_TS-0002_Security_Requirements_for_Release 2","China Mobile","2015-05-11T03:04:13","Draft","INC",null,"SEC 17"]
["SEC-2015-0517R01","Draft_CR_TS-0002_Security_Requirements_for_Release 2","China Mobile","2015-05-15T08:20:17","Draft","INC",null,"SEC 17"]
["SEC-2015-0518","A Solution of Supporting User-Defined Access Control Policies","Datang","2015-05-11T03:29:20","Draft","INC",null,"SEC 17"]
["SEC-2015-0519","TR-0016 Resource Definition for Supporting User-Defined ACP","Datang","2015-05-11T03:47:30","Draft","INC",null,"SEC 17"]
["SEC-2015-0520","PPM and oneM2M","KDDI Corporation","2015-05-11T07:12:46","Draft","INC",null,"SEC 17"]
["SEC-2015-0520R01","PPM and oneM2M","KDDI Corporation","2015-05-12T13:09:03","Draft","INC",null,"SEC 17"]
["SEC-2015-0521R01","WI-proposal TR-0008 Release 2","Giesecke & Devrient","2015-05-13T14:47:41","Draft","INC",null,"SEC 17"]
["SEC-2015-0522R01","Requirement SE Abstraction API","Giesecke & Devrient","2015-05-13T14:50:26","Draft","INC",null,"SEC 17"]
["SEC-2015-0524","SEC 17 Agenda","WG Chair","2015-05-13T19:53:49","Draft","AG",null,"SEC 17"]
["SEC-2015-0526","TR-0019 Dynamic Authorization Scope","Qualcomm Inc. (TIA) - Rapporteur","2015-05-14T02:00:54","Draft","CR",null,"SEC 17"]
["SEC-2015-0527","Security Requirements for WI-0016","Datang","2015-05-15T10:27:08","Draft","INC",null,"SEC 17"]
["TP-2015-0614","TP17 invitation (2015.5.18 - 22, Sapporo)","Shin SUZUKI (TTC)","2015-01-29T01:27:49","Noted","INV",null,"TP 17"]
["TP-2015-0670","Reply LS on use of OIDs for IoT","ITU-T Study Group 17","2015-04-24T09:31:56","Noted","LS",null,"TP 17"]
["TP-2015-0671","LS on security framework for Internet of Things","ITU-T Study Group 17","2015-04-24T09:35:25","Noted","LS",null,"TP 17"]
["TP-2015-0672","Liaison about ETSI ISG IP6 creation & interaction with other groups","ETSI ISG IP6","2015-04-28T09:35:55","Noted","LS",null,"TP 17"]
["TP-2015-0673","Voting List for TP17","Secretariat","2015-05-05T10:43:36","Agreed","INC",null,"TP 17"]
["TP-2015-0674","TP16 Actions Update","Secretary","2015-05-05T10:47:23","Noted","INC",null,"TP 17"]
["TP-2015-0675","Agenda TP17","Omar Elloumi, TP Chair, ALU (ATIS)","2015-05-06T09:41:12","Draft","AG",null,"TP 17"]
["TP-2015-0675R01","Agenda TP17","Omar Elloumi, TP Chair, ALU (ATIS)","2015-05-13T17:45:25","Draft","AG",null,"TP 17"]
["TP-2015-0675R02","Agenda TP17","Omar Elloumi, TP Chair, ALU (ATIS)","2015-05-17T12:03:45","Noted","AG",null,"TP 17"]
["TP-2015-0675R03","Agenda TP17","Omar Elloumi, TP Chair, ALU (ATIS)","2015-05-18T00:49:36","Draft","AG",null,"TP 17"]
["TP-2015-0675R04","Agenda TP17","Omar Elloumi, TP Chair, ALU (ATIS)","2015-05-18T02:09:32","Draft","AG",null,"TP 17"]
["TP-2015-0676","CR Pack TS-0004-Release 1","WG PRO Chairman","2015-05-07T15:01:40","Agreed","CR",null,"TP 17"]
["TP-2015-0677","CR Pack TS-0009-Release 1","WG PRO Chairman","2015-05-07T15:02:25","Agreed","CR",null,"TP 17"]
["TP-2015-0678","proposed_change_to_the_January_2016Meeting","Ericsson","2015-05-08T17:20:04","Draft","AG",null,"TP 17"]
["TP-2015-0679","oneM2M_Interop_Test_Event_Announcement","Jiaxin Yin, TST VC, Huawei Technologies Co., Ltd.","2015-05-10T15:32:55","Draft","INC",null,"TP 17"]
["TP-2015-0679R01","oneM2M_Interop_Test_Event_Announcement","Jiaxin Yin, TST VC, Huawei Technologies Co., Ltd.","2015-05-18T01:12:50","Draft","INC",null,"TP 17"]
["TP-2015-0680","WI-action_triggering","Huawei Technologies Co., Ltd.","2015-05-10T15:33:28","Noted","INC",null,"TP 17"]
["TP-2015-0681","WI-transaction_enablement","Huawei Technologies Co., Ltd.","2015-05-10T15:34:00","Noted","INC",null,"TP 17"]
["TP-2015-0682","TP17 timeslot schedule initial","TP leadership","2015-05-11T09:39:16","Draft","AG",null,"TP 17"]
["TP-2015-0682R01","TP17 timeslot schedule initial","TP leadership","2015-05-12T15:24:26","Draft","INC",null,"TP 17"]
["TP-2015-0682R02","TP17 timeslot schedule initial","TP leadership","2015-05-13T10:03:19","Draft","INC",null,"TP 17"]
["TP-2015-0682R03","TP17 timeslot schedule initial","TP leadership","2015-05-15T11:25:02","Noted","INC",null,"TP 17"]
["TP-2015-0682R04","TP17 timeslot schedule initial","TP leadership","2015-05-18T06:37:30","Draft","INC",null,"TP 17"]
["TP-2015-0683","minutes joint workshop IEEE P2413/oneM2M","Omar Elloumi, TP Chair, ALU (ATIS)","2015-05-11T14:50:07","Draft","STR",null,"TP 17"]
["TP-2015-0684","Request to Close Release 1 Work-items","WG3/PRO Chairman","2015-05-11T16:02:45","Agreed","INC",null,"TP 17"]
["TP-2015-0685","TR-0019 Dynamic Authorization v0_0_1","Rapporteur for Dynamic Authorization TR","2015-05-14T01:51:44","Draft","INC",null,"TP 17"]
["TP-2015-0686","Work Item Supporting Time Series Data","Huawei Technologies, Hitachi , Haier, China Unicom, China academy of information and communications technology","2015-05-14T02:42:33","Agreed","INC",null,"TP 17"]
["TP-2015-0687","Work_Item_Service_Component_Protocol","ZTE Corporation, AT&T","2015-05-14T05:10:39","Noted","CR",null,"TP 17"]
["TP-2015-0689","WPM status report at TP17 opening","Roland Hechwartner, WPM convenor","2015-05-15T19:08:38","Draft","STR",null,"TP 17"]
["TP-2015-0689R01","WPM status report at TP17 opening","Roland Hechwartner, WPM convenor","2015-05-18T07:06:24","Draft","STR",null,"TP 17"]
["TP-2015-0690","Mow report at TP17","MoW convenor  (Enrico Scarrone)","2015-05-17T21:11:54","Noted","STR",null,"TP 17"]
["TP-2015-0691","Draft MoW 1.2.0","MoW (Enrico Scarrone, MoW convenor)","2015-05-17T20:39:17","Draft","INC",null,"TP 17"]
["TST-2015-0085","Polling Channel Tests","InterDigital","2015-05-10T13:54:39","Draft","INC",null,"TST 17"]
["TST-2015-0086","single hop ACP mgmt","Mahdi Ben Alaya (LAAS-CNRS)","2015-05-10T14:25:52","Draft","CR",null,"TST 17"]
["TST-2015-0086R01","single hop ACP mgmt","Mahdi Ben Alaya (LAAS-CNRS)","2015-05-10T15:22:10","Draft","CR",null,"TST 17"]
["TST-2015-0087","single hop Group mgmt","Mahdi Ben Alaya (LAAS-CNRS)","2015-05-10T14:27:30","Draft","CR",null,"TST 17"]
["TST-2015-0087R01","single hop Group mgmt","Mahdi Ben Alaya (LAAS-CNRS)","2015-05-10T15:23:04","Draft","CR",null,"TST 17"]
["TST-2015-0088","single hop Subscription mgmt","Mahdi Ben Alaya (LAAS-CNRS)","2015-05-10T15:21:18","Draft","CR",null,"TST 17"]
["TST-2015-0089","single hop Discovery test","Mahdi Ben Alaya - LAAS-CNRS","2015-05-10T21:54:11","Draft","CR",null,"TST 17"]
["TST-2015-0089R01","single hop Discovery test","Mahdi Ben Alaya (LAAS-CNRS)","2015-05-10T22:24:22","Draft","CR",null,"TST 17"]
["TST-2015-0090","correct no hop Discovery test","Mahdi Ben Alaya (LAAS-CNRS)","2015-05-10T22:21:17","Draft","CR",null,"TST 17"]
["TST-2015-0091","non blocking synchronous test Container","Mahdi Ben Alaya (LAAS-CNRS)","2015-05-10T23:51:35","Draft","CR",null,"TST 17"]
["TST-2015-0092","non blocking asynchronous test Container","Mahdi Ben Alaya (LAAS-CNRS)","2015-05-11T00:14:08","Draft","CR",null,"TST 17"]
["TST-2015-0093","TS-0013_update_of_test_descriptions","Qualcomm Inc. (TIA)","2015-05-11T01:05:12","Draft","INC",null,"TST 17"]
["TST-2015-0093R01","TS-0013_update_of_test_descriptions","Qualcomm Inc. (TIA)","2015-05-13T23:47:28","Draft","INC",null,"TST 17"]
["TST-2015-0094","multi hop container mgmt","Mahdi Ben Alaya (LAAS-CNRS)","2015-05-11T01:48:21","Draft","CR",null,"TST 17"]
["TST-2015-0095","TS-0013 binding message convention","LG Electronics","2015-05-13T12:44:13","Draft","INC",null,"TST 17"]
["TST-2015-0096","TS-0013 MQTT binding messages","LG Electronics","2015-05-13T12:44:48","Draft","INC",null,"TST 17"]
["TST-2015-0096R01","TS-0013 MQTT binding messages","LG Electronics","2015-05-14T09:13:57","Draft","INC",null,"TST 17"]
["TST-2015-0097","TSS&TP-Test Groups","KETI","2015-05-12T09:37:34","Draft","INC",null,"TST 17"]
["TST-2015-0098","TST-17-Agenda","WG6 Chair","2015-05-15T04:27:48","Draft","AG",null,"TST 17"]
["TST-2015-0098R01","TST-17-Agenda","WG6 Chair","2015-05-17T07:49:39","Draft","AG",null,"TST 17"]
["TST-2015-0099","TST_17_docs_allocation","WG6 Chair","2015-05-15T01:58:39","Draft","AG",null,"TST 17"]
["TST-2015-0099R01","TST_17_docs_allocation","WG6 Chair","2015-05-15T04:28:21","Draft","AG",null,"TST 17"]
["TST-2015-0099R02","TST_17_docs_allocation","WG6 Chair","2015-05-17T07:48:58","Draft","AG",null,"TST 17"]
["TST-2015-0100","ICS-ICS Proforma Annex","KETI","2015-05-15T08:23:46","Draft","INC",null,"TST 17"]
["TST-2015-0101","Minutes TST TP17","secretary",null,"Draft","MIN",null,"TST 17"]

{"sheet":"TP","index":3,"n_rows":34,"n_cols":8,"rows_kept":34,"cut":false,"hidden":false,"merged":[]}
["SHORT DOC NB","SHORTNAME","SOURCE","UPLOADED","STATUS","DOC TYPE","VERS","MEETING"]
["TP-2015-0682R05","TP17 timeslot schedule initial","TP leadership","2015-05-18T08:40:02","Draft","INC",null,"TP 17"]
["TP-2015-0689R01","WPM status report at TP17 opening","Roland Hechwartner, WPM convenor","2015-05-18T07:06:24","Draft","STR",null,"TP 17"]
["TP-2015-0682R04","TP17 timeslot schedule initial","TP leadership","2015-05-18T06:37:30","Draft","INC",null,"TP 17"]
["TP-2015-0675R04","Agenda TP17","Omar Elloumi, TP Chair, ALU (ATIS)","2015-05-18T02:09:32","Draft","AG",null,"TP 17"]
["TP-2015-0679R01","oneM2M_Interop_Test_Event_Announcement","Jiaxin Yin, TST VC, Huawei Technologies Co., Ltd.","2015-05-18T01:12:50","Draft","INC",null,"TP 17"]
["TP-2015-0675R03","Agenda TP17","Omar Elloumi, TP Chair, ALU (ATIS)","2015-05-18T00:49:36","Draft","AG",null,"TP 17"]
["TP-2015-0690","Mow report at TP17","MoW convenor  (Enrico Scarrone)","2015-05-17T21:11:54","Noted","STR",null,"TP 17"]
["TP-2015-0691","Draft MoW 1.2.0","MoW (Enrico Scarrone, MoW convenor)","2015-05-17T20:39:17","Draft","INC",null,"TP 17"]
["TP-2015-0675R02","Agenda TP17","Omar Elloumi, TP Chair, ALU (ATIS)","2015-05-17T12:03:45","Noted","AG",null,"TP 17"]
["TP-2015-0689","WPM status report at TP17 opening","Roland Hechwartner, WPM convenor","2015-05-15T19:08:38","Draft","STR",null,"TP 17"]
["TP-2015-0682R03","TP17 timeslot schedule initial","TP leadership","2015-05-15T11:25:02","Noted","INC",null,"TP 17"]
["TP-2015-0687","Work_Item_Service_Component_Protocol","ZTE Corporation, AT&T","2015-05-14T05:10:39","Noted","CR",null,"TP 17"]
["TP-2015-0686","Work Item Supporting Time Series Data","Huawei Technologies, Hitachi , Haier, China Unicom, China academy of information and communications technology","2015-05-14T02:42:33","Agreed","INC",null,"TP 17"]
["TP-2015-0685","TR-0019 Dynamic Authorization v0_0_1","Rapporteur for Dynamic Authorization TR","2015-05-14T01:51:44","Draft","INC",null,"TP 17"]
["TP-2015-0675R01","Agenda TP17","Omar Elloumi, TP Chair, ALU (ATIS)","2015-05-13T17:45:25","Draft","AG",null,"TP 17"]
["TP-2015-0682R02","TP17 timeslot schedule initial","TP leadership","2015-05-13T10:03:19","Draft","INC",null,"TP 17"]
["TP-2015-0682R01","TP17 timeslot schedule initial","TP leadership","2015-05-12T15:24:26","Draft","INC",null,"TP 17"]
["TP-2015-0684","Request to Close Release 1 Work-items","WG3/PRO Chairman","2015-05-11T16:02:45","Agreed","INC",null,"TP 17"]
["TP-2015-0683","minutes joint workshop IEEE P2413/oneM2M","Omar Elloumi, TP Chair, ALU (ATIS)","2015-05-11T14:50:07","Draft","STR",null,"TP 17"]
["TP-2015-0682","TP17 timeslot schedule initial","TP leadership","2015-05-11T09:39:16","Draft","AG",null,"TP 17"]
["TP-2015-0681","WI-transaction_enablement","Huawei Technologies Co., Ltd.","2015-05-10T15:34:00","Noted","INC",null,"TP 17"]
["TP-2015-0680","WI-action_triggering","Huawei Technologies Co., Ltd.","2015-05-10T15:33:28","Noted","INC",null,"TP 17"]
["TP-2015-0679","oneM2M_Interop_Test_Event_Announcement","Jiaxin Yin, TST VC, Huawei Technologies Co., Ltd.","2015-05-10T15:32:55","Draft","INC",null,"TP 17"]
["TP-2015-0678","proposed_change_to_the_January_2016Meeting","Ericsson","2015-05-08T17:20:04","Draft","AG",null,"TP 17"]
["TP-2015-0677","CR Pack TS-0009-Release 1","WG PRO Chairman","2015-05-07T15:02:25","Agreed","CR",null,"TP 17"]
["TP-2015-0676","CR Pack TS-0004-Release 1","WG PRO Chairman","2015-05-07T15:01:40","Agreed","CR",null,"TP 17"]
["TP-2015-0675","Agenda TP17","Omar Elloumi, TP Chair, ALU (ATIS)","2015-05-06T09:41:12","Draft","AG",null,"TP 17"]
["TP-2015-0674","TP16 Actions Update","Secretary","2015-05-05T10:47:23","Noted","INC",null,"TP 17"]
["TP-2015-0673","Voting List for TP17","Secretariat","2015-05-05T10:43:36","Agreed","INC",null,"TP 17"]
["TP-2015-0672","Liaison about ETSI ISG IP6 creation & interaction with other groups","ETSI ISG IP6","2015-04-28T09:35:55","Noted","LS",null,"TP 17"]
["TP-2015-0671","LS on security framework for Internet of Things","ITU-T Study Group 17","2015-04-24T09:35:25","Noted","LS",null,"TP 17"]
["TP-2015-0670","Reply LS on use of OIDs for IoT","ITU-T Study Group 17","2015-04-24T09:31:56","Noted","LS",null,"TP 17"]
["TP-2015-0614","TP17 invitation (2015.5.18 - 22, Sapporo)","Shin SUZUKI (TTC)","2015-01-29T01:27:49","Noted","INV",null,"TP 17"]

{"sheet":"REQ","index":4,"n_rows":18,"n_cols":8,"rows_kept":18,"cut":false,"hidden":false,"merged":[]}
["SHORT DOC NB","SHORTNAME","SOURCE","UPLOADED","STATUS","DOC TYPE","VERS","MEETING"]
["REQ-2015-0566","WG1 Document Allocation","Shelby Kiewel","2015-05-16T22:16:07","Draft","AG",null,"REQ 17"]
["REQ-2015-0565","direct_communication_CSEs_requirements","LG Electronics","2015-05-12T12:50:31","Draft","CR",null,"REQ 17"]
["REQ-2015-0564","Requirements for Efficient Communications","Nicolas Damour, Sierra Wireless","2015-05-11T09:10:37","Draft","INC",null,"REQ 17"]
["REQ-2015-0563","pCR_on_smart_meter_reading","China Mobile","2015-05-11T04:16:05","Draft","INC",null,"REQ 17"]
["REQ-2015-0562","Aircraft_Construction_and_Maintenance","Hitachi and InterDigital","2015-05-10T17:40:56","Draft","INC",null,"REQ 17"]
["REQ-2015-0561","Use case for group registration","InterDigital","2015-05-10T17:25:13","Draft","INC",null,"REQ 17"]
["REQ-2015-0560","3GPP coverage of oneM2M requirements.","InterDigital, Intel","2015-05-10T17:23:37","Draft","INC",null,"REQ 17"]
["REQ-2015-0559","requirements_on_ETC","Yingjie Hong,","2015-05-10T15:35:18","Draft","AG",null,"REQ 17"]
["REQ-2015-0558","group_requirements","Huawei Technologies Co., Ltd.","2015-05-10T15:31:58","Draft","CR",null,"REQ 17"]
["REQ-2015-0557","Use_Case_multicast_using_group","Huawei Technologies Co., Ltd.","2015-05-10T15:31:18","Draft","CR",null,"REQ 17"]
["REQ-2015-0556","Use_Case_access_control_using_group","Huawei Technologies Co., Ltd.","2015-05-10T15:30:34","Draft","CR",null,"REQ 17"]
["REQ-2015-0554","Smart_Automatic_Driving","Hitachi","2015-05-08T09:30:43","Draft","INC",null,"REQ 17"]
["REQ-2015-0553","Requirements to support on-demand data collection for factories","Hitachi","2015-05-08T09:15:42","Draft","CR",null,"REQ 17"]
["REQ-2015-0552","Data Process for Inter-factory manufacturing","Hitachi","2015-05-08T09:02:54","Draft","INC",null,"REQ 17"]
["REQ-2015-0551","CR_to_TR0018_Use_Case_6.1","Hitachi","2015-05-08T08:44:09","Draft","CR",null,"REQ 17"]
["REQ-2015-0550","Requirement_of_supporting_the_integrity_of_data_collection_monitoring","Huawei Technologies","2015-05-08T03:16:42","Draft","CR",null,"REQ 17"]
["REQ-2015-0549","DRAFT_Home_Domain_Enablement_TR-0013_V0_3_0","LG Electronics, KETI","2015-05-07T11:02:41","Draft","CR",null,"REQ 17"]

{"sheet":"ARC","index":5,"n_rows":84,"n_cols":8,"rows_kept":84,"cut":false,"hidden":false,"merged":[]}
["SHORT DOC NB","SHORTNAME","SOURCE","UPLOADED","STATUS","DOC TYPE","VERS","MEETING"]
["ARC-2015-1887R01","CSE Registration procedure Release2","KT","2015-05-17T09:15:50","Draft","CR",null,"ARC 17"]
["ARC-2015-1886R01","CSE Registration procedure Release1","KT","2015-05-17T09:12:52","Draft","CR",null,"ARC 17"]
["ARC-2015-1885R01","RETRIEVE Release2","KT","2015-05-17T09:10:07","Draft","CR",null,"ARC 17"]
["ARC-2015-1884R01","RETRIEVE Release1","KT","2015-05-17T09:08:39","Draft","CR",null,"ARC 17"]
["ARC-2015-1883R01","Non-registration related CREATE procedure Release2","KT","2015-05-17T09:06:51","Draft","CR",null,"ARC 17"]
["ARC-2015-1882R01","Non-registration related CREATE procedure Release1","KT","2015-05-17T08:59:47","Draft","CR",null,"ARC 17"]
["ARC-2015-1908R01","CR for result content parameter clarification","KETI","2015-05-15T05:15:06","Draft","CR",null,"ARC 17"]
["ARC-2015-1898R01","App-ID Use Cases, Syntax and Attributes","Darold Hemphill (iconectiv)","2015-05-14T16:07:22","Draft","CR",null,"ARC 17"]
["ARC-2015-1897R01","App-ID Use Cases, Syntax and Attributes","Darold Hemphill (iconectiv)","2015-05-14T16:06:35","Draft","CR",null,"ARC 17"]
["ARC-2015-1908","CR for result content parameter clarification","KETI","2015-05-14T15:49:42","Draft","INC",null,"ARC 17"]
["ARC-2015-1907","CR AE child resource removal from remoteCSE resource(R2)","LG Electronics","2015-05-14T09:05:30","Draft","CR",null,"ARC 17"]
["ARC-2015-1906","CR AE child resource removal from remoteCSE resource","LG Electronics","2015-05-14T09:05:11","Draft","CR",null,"ARC 17"]
["ARC-2015-1905","CR result content parameter default value for delete operation","LG Electronics","2015-05-14T09:04:44","Draft","CR",null,"ARC 17"]
["ARC-2015-1835R02","CR resourceStatus","LG Electronics","2015-05-13T02:55:21","Draft","CR",null,"ARC 17"]
["ARC-2015-1904","Wayforward_of_Abstract_Information_Model","LG Electronics","2015-05-12T10:22:09","Draft","CR",null,"ARC 17"]
["ARC-2015-1903","CR_structured_resource_ID_clarification(R2)","LG Electronics","2015-05-11T07:31:41","Draft","CR",null,"ARC 17"]
["ARC-2015-1902","CR_structured_resource_ID_clarification","LG Electronics","2015-05-11T07:31:23","Draft","CR",null,"ARC 17"]
["ARC-2015-1901","CR stateTag clarification(R2)","LG Electronics","2015-05-11T07:30:57","Draft","CR",null,"ARC 17"]
["ARC-2015-1793R01","App-ID format","FUJITSU","2015-05-10T23:24:49","Draft","CR",null,"ARC 17"]
["ARC-2015-1900","Section10-Editorial-Clarifications-And-Alignment(R2)","Yingjie Hong, ZTE","2015-05-10T15:44:36","Draft","CR",null,"ARC 17"]
["ARC-2015-1899","Section10-Editorial-Clarifications-And-Alignment","Yingjie Hong, ZTE","2015-05-10T15:39:57","Draft","CR",null,"ARC 17"]
["ARC-2015-1898","App-ID Use Cases, Syntax and Attributes","Darold Hemphill (iconectiv)","2015-05-10T15:24:04","Draft","CR",null,"ARC 17"]
["ARC-2015-1897","App-ID Use Cases, Syntax and Attributes","Darold Hemphill (iconectiv)","2015-05-10T15:18:43","Draft","CR",null,"ARC 17"]
["REQ-2015-0555","CR_Requirements for App/Field Domain Component Configuration","FUJITSU","2015-05-10T14:43:31","Draft","CR",null,"ARC 17"]
["ARC-2015-1844","semanticDescriptor resource","Omar Elloumi, ALU (ATIS), Martin Bauer NEC Europe Ltd. (ETSI)  Joerg Swetina, NEC Europe Ltd. (ETSI)  Ataru Kobayashi, NEC Corporation (TTC)  Mahdi Ben Alaya, LAAS-CNRS (ETSI)  Khalil Drira, LAAS-CNRS (ETSI)","2015-05-10T11:19:19","Draft","CR",null,"ARC 17"]
["ARC-2015-1896","procedure_notification_target_removal","Huawei, LGE","2015-05-10T07:30:16","Draft","CR",null,"ARC 17"]
["ARC-2015-1894","schedule Resource Procedures Release2","KT","2015-05-09T13:43:01","Draft","INC",null,"ARC 17"]
["ARC-2015-1893","NOTIFY Release2","KT","2015-05-09T13:28:03","Draft","CR",null,"ARC 17"]
["ARC-2015-1892","NOTIFY Release1","KT","2015-05-09T13:23:59","Draft","CR",null,"ARC 17"]
["ARC-2015-1891","Non-deregistration related DELETE procedure Release2","KT","2015-05-09T13:17:31","Draft","CR",null,"ARC 17"]
["ARC-2015-1890","Non-deregistration related DELETE procedure Release1","KT","2015-05-09T13:14:15","Draft","CR",null,"ARC 17"]
["ARC-2015-1889","UPDATE Release2","KT","2015-05-09T13:08:38","Draft","CR",null,"ARC 17"]
["ARC-2015-1888","UPDATE Release1","KT","2015-05-09T13:04:35","Draft","CR",null,"ARC 17"]
["ARC-2015-1887","CSE Registration procedure Release2","KT","2015-05-09T10:25:08","Draft","CR",null,"ARC 17"]
["ARC-2015-1886","CSE Registration procedure Release1","KT","2015-05-09T10:21:46","Draft","CR",null,"ARC 17"]
["ARC-2015-1885","RETRIEVE Release2","KT","2015-05-09T10:11:35","Draft","CR",null,"ARC 17"]
["ARC-2015-1884","RETRIEVE Release1","KT","2015-05-09T10:07:05","Draft","CR",null,"ARC 17"]
["ARC-2015-1883","Non-registration related CREATE procedure Release2","KT","2015-05-09T09:57:08","Draft","CR",null,"ARC 17"]
["ARC-2015-1882","Non-registration related CREATE procedure Release1","KT","2015-05-09T09:54:12","Draft","CR",null,"ARC 17"]
["ARC-2015-1881","Structure of locationPolicy resource Release2","KT","2015-05-09T09:46:16","Draft","CR",null,"ARC 17"]
["ARC-2015-1880","Structure of serviceSubscribeNode resource Release2","KT","2015-05-09T09:30:18","Draft","CR",null,"ARC 17"]
["ARC-2015-1879","Structure of serviceSubscribeNode resource Release1","KT","2015-05-09T09:26:18","Draft","CR",null,"ARC 17"]
["ARC-2015-1878","Resource Type schedule Release2","KT","2015-05-09T09:18:07","Draft","CR",null,"ARC 17"]
["ARC-2015-1877","Resource Type schedule Release1","KT","2015-05-09T09:14:30","Draft","CR",null,"ARC 17"]
["ARC-2015-1876","Structure of group resource Release2","KT","2015-05-09T08:48:58","Draft","CR",null,"ARC 17"]
["ARC-2015-1875","Structure of group resource Release1","KT","2015-05-09T08:44:10","Draft","CR",null,"ARC 17"]
["ARC-2015-1874","Structure of container resource Release2","KT","2015-05-09T08:35:42","Draft","CR",null,"ARC 17"]
["ARC-2015-1873","Structure of container resource Release1","KT","2015-05-09T08:29:55","Draft","CR",null,"ARC 17"]
["ARC-2015-1872","Resource Type AE Release2","KT","2015-05-09T08:22:13","Draft","CR",null,"ARC 17"]
["ARC-2015-1871","Resource Type AE Release1","KT","2015-05-09T08:19:28","Draft","CR",null,"ARC 17"]
["ARC-2015-1870","Structure of < remoteCSE> resource Release2","KT","2015-05-09T08:13:26","Draft","CR",null,"ARC 17"]
["ARC-2015-1869","Structure of < remoteCSE> resource Release1","KT","2015-05-09T08:09:46","Draft","CR",null,"ARC 17"]
["ARC-2015-1868","General Procedure for Location Request Release2","KT","2015-05-09T08:03:46","Draft","CR",null,"ARC 17"]
["ARC-2015-1867","General Procedure for Location Request Release1","KT","2015-05-09T07:59:25","Draft","CR",null,"ARC 17"]
["ARC-2015-1866","Asynchronous Case Release2","KT","2015-05-09T07:49:22","Draft","CR",null,"ARC 17"]
["ARC-2015-1865","Asynchronous Case Release1","KT","2015-05-09T07:43:00","Draft","CR",null,"ARC 17"]
["ARC-2015-1861","Summary of Request Message Parameters Release2","KT","2015-05-09T07:35:23","Draft","CR",null,"ARC 17"]
["ARC-2015-1864","Schedule for AE resource_mirror","LG Electronics","2015-05-09T07:27:59","Draft","CR",null,"ARC 17"]
["ARC-2015-1863","pollingChannel multiplicity mirror","LG Electronics","2015-05-09T07:25:50","Draft","CR",null,"ARC 17"]
["ARC-2015-1862","pollingChannel multiplicity","LG Electronics","2015-05-09T07:23:57","Draft","CR",null,"ARC 17"]
["ARC-2015-1860","Summary of Request Message Parameters Release1","KT","2015-05-09T07:08:42","Draft","CR",null,"ARC 17"]
["ARC-2015-1859","CR stateTag clarification","LG Electronics","2015-05-08T23:40:15","Draft","CR",null,"ARC 17"]
["ARC-2015-1854R01","CR contentInstance clarification(R2)","LG Electronics","2015-05-08T22:37:55","Draft","CR",null,"ARC 17"]
["ARC-2015-1853R01","CR contentInstance clarification","LG Electronics","2015-05-08T22:37:15","Draft","CR",null,"ARC 17"]
["ARC-2015-1858","TS-0014-LWM2M_IPE_Administration","ALU (TIA)","2015-05-08T13:53:04","Draft","INC",null,"ARC 17"]
["ARC-2015-1857","CR for Clarification on batchNotify attribute","VIA Telecom","2015-05-08T09:41:21","Draft","CR",null,"ARC 17"]
["ARC-2015-1856","CR parameter default values(R2)","LG Electronics","2015-05-08T09:19:22","Draft","CR",null,"ARC 17"]
["ARC-2015-1855","CR parameter default values","LG Electronics","2015-05-08T09:19:07","Draft","CR",null,"ARC 17"]
["ARC-2015-1854","CR contentInstance clarification(R2)","LG Electronics","2015-05-08T09:18:50","Draft","CR",null,"ARC 17"]
["ARC-2015-1853","CR contentInstance clarification","LG Electronics","2015-05-08T09:18:32","Draft","CR",null,"ARC 17"]
["ARC-2015-1852","CR container clarification(R2)","LG Electronics","2015-05-08T09:13:12","Draft","CR",null,"ARC 17"]
["ARC-2015-1851","CR container clarification","LG Electronics","2015-05-08T09:11:29","Draft","CR",null,"ARC 17"]
["ARC-2015-1850","locationUpdatePeriod UPDATE","ZTE","2015-05-08T07:28:42","Draft","CR",null,"ARC 17"]
["ARC-2015-1849","CR to TS 0001 for 3GPP Interface update","AT&T, Intel Corperation","2015-05-07T19:18:01","Draft","AG",null,"ARC 17"]
["ARC-2015-1848","Discussion paper for interworking with 3GPP R13 MTC","AT&T; Intel Corporation","2015-05-07T19:14:23","Draft","AG",null,"ARC 17"]
["ARC-2015-1845","CR for locationPolicy Procedures","LG Electronics","2015-05-07T12:19:18","Draft","CR",null,"ARC 17"]
["ARC-2015-1843","TS-0007-Service_Components-V0_8_1_Draft-Baseline","ALU (TIA)","2015-05-06T13:11:45","Draft","INC",null,"ARC 17"]
["ARC-2015-1835R01","CR resourceStatus","LG Electronics","2015-04-24T01:13:40","Draft","CR",null,"ARC 17"]
["MAS-2015-0546","applying SAREF (as an example) to oneM2M","Omar Elloumi, ALU (ATIS)","2015-04-19T13:00:26","Noted","INC",null,"ARC 17"]
["ARC-2015-1829R02","TS-0014-LWM2M_Object_Subscription","Tim Carey, ALU, timothy.carey@alcatel-lucent.com","2015-04-13T17:25:18","Draft","INC",null,"ARC 17"]
["ARC-2015-1829R01","TS-0014-LWM2M_Object_Subscription","Tim Carey, ALU, timothy.carey@alcatel-lucent.com","2015-04-09T17:54:53","Draft","INC",null,"ARC 17"]
["ARC-2015-1829","TS-0014-LWM2M_Object_Subscription","Tim Carey, ALU, timothy.carey@alcatel-lucent.com","2015-04-04T00:59:09","Draft","INC",null,"ARC 17"]
["ARC-2015-1895","TS-0014-LWM2M_Object Transport and Interworking","Gemalto N.V",null,"Draft","INC",null,"ARC 17"]

{"sheet":"PRO","index":6,"n_rows":45,"n_cols":8,"rows_kept":45,"cut":false,"hidden":false,"merged":[]}
["SHORT DOC NB","SHORTNAME","SOURCE","UPLOADED","STATUS","DOC TYPE","VERS","MEETING"]
["PRO-2015-0791R01","Agenda WG3/PRO","WG3/PRO Chairman","2015-05-17T08:55:47","Draft","AG",null,"PRO 17"]
["PRO-2015-0798","Add Representation in NotificationEvent","LG Electronics","2015-05-15T09:15:15","Draft","CR",null,"PRO 17"]
["PRO-2015-0797","CR for partial retrieve request cases","KETI","2015-05-15T05:13:07","Draft","CR",null,"PRO 17"]
["PRO-2015-0791","Agenda WG3/PRO","WG3/PRO Chairman","2015-05-14T10:13:24","Draft","AG",null,"PRO 17"]
["PRO-2015-0796","CR AE child resource removal from remoteCSE resource","LG Electronics","2015-05-14T09:06:17","Draft","CR",null,"PRO 17"]
["PRO-2015-0764","AE_Resource_Type_XSD_Correction","LG Electronics","2015-05-14T03:38:08","Draft","CR",null,"PRO 17"]
["PRO-2015-0763R01","FilterUsage Correction","LG Electronics","2015-05-14T03:37:15","Draft","CR",null,"PRO 17"]
["PRO-2015-0795","CR for Response Type Info","LG Electronics","2015-05-13T02:41:11","Draft","CR",null,"PRO 17"]
["PRO-2015-0794","ShortName_for_groupID","LG Electronics","2015-05-13T02:17:20","Draft","CR",null,"PRO 17"]
["PRO-2015-0793","ShortName for oldest","LG Electronics","2015-05-13T02:04:57","Draft","CR",null,"PRO 17"]
["PRO-2015-0792","Virtual_Resource_XSD_Correction","LG Electronics","2015-05-13T01:56:23","Draft","CR",null,"PRO 17"]
["PRO-2015-0790","TS-0004-XSD-ACP_related_corrections","Qualcomm, IBM","2015-05-11T20:14:13","Draft","CR",null,"PRO 17"]
["PRO-2015-0789","CR_Name_parameter_data_type","LG Electronics","2015-05-11T07:33:02","Draft","CR",null,"PRO 17"]
["PRO-2015-0788","CR_MQTT_response_originator_receiver","LG Electronics","2015-05-11T07:32:45","Draft","CR",null,"PRO 17"]
["PRO-2015-0787","CR labels data type","LG Electronics","2015-05-11T07:32:23","Draft","CR",null,"PRO 17"]
["PRO-2015-0758R01","CR for TS-0004 ShortNames","QUALCOMM","2015-05-10T23:51:48","Draft","CR",null,"PRO 17"]
["PRO-2015-0786","TS-0004-resourceName_correction","Qualcomm Inc. (TIA)","2015-05-10T23:50:04","Draft","CR",null,"PRO 17"]
["PRO-2015-0785","correction-cmdhDefaults","Qualcomm Inc. (TIA)","2015-05-10T23:49:47","Draft","CR",null,"PRO 17"]
["PRO-2015-0784","AnnexH_corrections","Qualcomm Inc. (TIA)","2015-05-10T23:49:32","Draft","CR",null,"PRO 17"]
["PRO-2015-0783","Clarification_on_XSD_usage","Qualcomm Inc. (TIA)","2015-05-10T23:48:53","Draft","CR",null,"PRO 17"]
["PRO-2015-0777","CR Removal of STE changes from V.1.1.0","FUJITSU","2015-05-10T16:33:03","Draft","CR",null,"PRO 17"]
["PRO-2015-0782","subscription_to_child_resource_R2","Huawei Technologies Co., Ltd.","2015-05-10T15:36:31","Draft","CR",null,"PRO 17"]
["PRO-2015-0781","subscription_to_child_resource_R1","Huawei Technologies Co., Ltd.","2015-05-10T15:35:33","Draft","CR",null,"PRO 17"]
["PRO-2015-0780","location_update_period","Huawei Technologies Co., Ltd.","2015-05-10T15:34:45","Draft","CR",null,"PRO 17"]
["PRO-2015-0779","Generic response procedure for receiver","KT","2015-05-10T13:33:20","Draft","CR",null,"PRO 17"]
["PRO-2015-0778","Generic resource request procedure for originator","KT","2015-05-10T13:30:46","Draft","CR",null,"PRO 17"]
["PRO-2015-0776","Transfer contents of TS-0004 v.1.1.0 to v.2.0.0","FUJITSU","2015-05-10T07:57:43","Draft","INC",null,"PRO 17"]
["PRO-2015-0775","WI-0009 Update","FUJITSU","2015-05-10T07:30:18","Draft","INC",null,"PRO 17"]
["PRO-2015-0749R01","NWI proposal for WebSocket binding","FUJITSU","2015-05-09T13:36:31","Draft","INC",null,"PRO 17"]
["PRO-2015-0774","Schedule for AE resource","LG Electronics","2015-05-09T07:30:46","Draft","CR",null,"PRO 17"]
["PRO-2015-0773","pollingChannel multiplicity","LG Electronics","2015-05-09T07:29:29","Draft","CR",null,"PRO 17"]
["PRO-2015-0772","CR for MQTT content-type","KETI","2015-05-08T12:39:52","Draft","CR",null,"PRO 17"]
["PRO-2015-0771","CR for Clarification on batchNotify attribute","VIA Telecom","2015-05-08T09:50:20","Draft","CR",null,"PRO 17"]
["PRO-2015-0770","CR_hanadling_of_timestamp_parameters","LG Electronics","2015-05-08T09:45:32","Draft","CR",null,"PRO 17"]
["PRO-2015-0765","CR contentInstance","LG Electronics","2015-05-08T09:27:35","Draft","CR",null,"PRO 17"]
["PRO-2015-0766","CR_data_type_for_resultPersistence","LG Electronics","2015-05-08T09:27:19","Draft","CR",null,"PRO 17"]
["PRO-2015-0767","CR_discResType","LG Electronics","2015-05-08T09:26:57","Draft","CR",null,"PRO 17"]
["PRO-2015-0768","CR_parameter_default_values","LG Electronics","2015-05-08T09:26:31","Draft","CR",null,"PRO 17"]
["PRO-2015-0769","RSC cleanup wayforward","LG Electronics, Fujitsu","2015-05-08T09:26:16","Draft","INC",null,"PRO 17"]
["PRO-2015-0763","FilterUsage Correction","LG Electronics","2015-05-07T11:44:42","Draft","CR",null,"PRO 17"]
["PRO-2015-0762","Short Name for Resource Type","LG Electronics","2015-05-04T02:57:04","Draft","CR",null,"PRO 17"]
["PRO-2015-0759","CR for TS-0004 ContentSize","QUALCOMM","2015-04-30T10:52:42","Draft","CR",null,"PRO 17"]
["PRO-2015-0757","CR for TS-0004 ResponseStatusCode","QUALCOMM","2015-04-30T10:00:27","Draft","CR",null,"PRO 17"]
["PRO-2015-0751","DRAFT_TS-0004-V1_1_0","TS-0004 Rapporteurs","2015-04-09T10:52:28","Noted","INC",null,"PRO 17"]

{"sheet":"SEC","index":7,"n_rows":24,"n_cols":8,"rows_kept":24,"cut":false,"hidden":false,"merged":[]}
["SHORT DOC NB","SHORTNAME","SOURCE","UPLOADED","STATUS","DOC TYPE","VERS","MEETING"]
["SEC-2015-0527","Security Requirements for WI-0016","Datang","2015-05-15T10:27:08","Draft","INC",null,"SEC 17"]
["SEC-2015-0517R01","Draft_CR_TS-0002_Security_Requirements_for_Release 2","China Mobile","2015-05-15T08:20:17","Draft","INC",null,"SEC 17"]
["SEC-2015-0516R01","Group_Authentication_Architecture","China Mobile","2015-05-15T03:45:00","Draft","INC",null,"SEC 17"]
["SEC-2015-0526","TR-0019 Dynamic Authorization Scope","Qualcomm Inc. (TIA) - Rapporteur","2015-05-14T02:00:54","Draft","CR",null,"SEC 17"]
["SEC-2015-0524","SEC 17 Agenda","WG Chair","2015-05-13T19:53:49","Draft","AG",null,"SEC 17"]
["SEC-2015-0522R01","Requirement SE Abstraction API","Giesecke & Devrient","2015-05-13T14:50:26","Draft","INC",null,"SEC 17"]
["SEC-2015-0521R01","WI-proposal TR-0008 Release 2","Giesecke & Devrient","2015-05-13T14:47:41","Draft","INC",null,"SEC 17"]
["SEC-2015-0520R01","PPM and oneM2M","KDDI Corporation","2015-05-12T13:09:03","Draft","INC",null,"SEC 17"]
["SEC-2015-0520","PPM and oneM2M","KDDI Corporation","2015-05-11T07:12:46","Draft","INC",null,"SEC 17"]
["SEC-2015-0519","TR-0016 Resource Definition for Supporting User-Defined ACP","Datang","2015-05-11T03:47:30","Draft","INC",null,"SEC 17"]
["SEC-2015-0518","A Solution of Supporting User-Defined Access Control Policies","Datang","2015-05-11T03:29:20","Draft","INC",null,"SEC 17"]
["SEC-2015-0517","Draft_CR_TS-0002_Security_Requirements_for_Release 2","China Mobile","2015-05-11T03:04:13","Draft","INC",null,"SEC 17"]
["SEC-2015-0516","Group_Authentication_Architecture","China Mobile","2015-05-11T02:59:23","Draft","INC",null,"SEC 17"]
["SEC-2015-0515","Security Requirements for WI-0023","Datang","2015-05-11T02:37:05","Draft","INC",null,"SEC 17"]
["SEC-2015-0513","App and Mgmt End-to-End Security Requirement","Qualcomm Inc. (TIA)","2015-05-11T00:28:24","Draft","INC",null,"SEC 17"]
["SEC-2015-0514","Primitive End-to-End Security Requirements","Qualcomm Inc. (TIA)","2015-05-11T00:27:55","Draft","INC",null,"SEC 17"]
["SEC-2015-0511","What is end-to-end security","Qualcomm Inc. (TIA)","2015-05-10T21:42:11","Draft","INC",null,"SEC 17"]
["SEC-2015-0512","TR-0012 End-to-End Security Definition","Qualcomm Inc. (TIA)","2015-05-10T21:41:30","Draft","CR",null,"SEC 17"]
["SEC-2015-0510","TR-0012 CR 8_1_1 Object Security Review","Qualcomm Inc. (TIA)","2015-05-10T20:53:33","Draft","CR",null,"SEC 17"]
["SEC-2015-0509","App-ID Use Cases, Syntax and Attributes","Darold Hemphill (iconectiv)","2015-05-10T15:25:58","Withdrawn","CR",null,"SEC 17"]
["SEC-2015-0508","App-ID Use Cases, Syntax and Attributes","Darold Hemphill (iconectiv)","2015-05-10T15:21:17","Withdrawn","CR",null,"SEC 17"]
["SEC-2015-0507","Use case of PPM","KDDI Corporation","2015-05-10T15:04:34","Draft","INC",null,"SEC 17"]
["SEC-2015-0506","Fix a wrong reference for Location-based ACP","LG Electronics","2015-05-06T11:09:22","Draft","CR",null,"SEC 17"]

{"sheet":"MAS","index":8,"n_rows":51,"n_cols":8,"rows_kept":51,"cut":false,"hidden":false,"merged":[]}
["SHORT DOC NB","SHORTNAME","SOURCE","UPLOADED","STATUS","DOC TYPE","VERS","MEETING"]
["MAS-2015-0572R02","Extension to Device Sets on TR-0017","NTT","2015-05-19T09:27:28","Draft","CR",null,"MAS 17"]
["MAS-2015-0571R03","Analysis from ECHONET on TR-0017","NTT","2015-05-19T09:27:03","Draft","CR",null,"MAS 17"]
["MAS-2015-0571R02","Analysis from ECHONET on TR-0017","NTT","2015-05-19T09:23:34","Draft","CR",null,"MAS 17"]
["MAS-2015-0575R02","Clarification_of_abstract_information_model_Approach_1","LG Electronics","2015-05-19T08:56:20","Draft","CR",null,"MAS 17"]
["MAS-2015-0580","Align Resource Names and Attributes","ALU (TIA)","2015-05-19T08:17:15","Draft","CR",null,"MAS 17"]
["MAS-2015-0555R02","TS-0005-LWM2M-V1_0_1_Fix","Gemalto N.V","2015-05-19T06:44:57","Draft","CR",null,"MAS 17"]
["MAS-2015-0550R01","Update TS-0006 XML namespace","ALU (TIA)","2015-05-19T04:40:06","Draft","CR",null,"MAS 17"]
["MAS-2015-0572R01","Extension to Device Sets on TR-0017","NTT","2015-05-19T04:35:00","Draft","CR",null,"MAS 17"]
["MAS-2015-0558R01","Device Management related Questions to oneM2M","ORANGE (ETSI)","2015-05-19T03:38:18","Draft","INC",null,"MAS 17"]
["MAS-2015-0579","LS answer to ITU-T SG17 on the use of OID for IoT","KETI, WG2,5","2015-05-19T01:43:14","Draft","LS",null,"MAS 17"]
["MAS-2015-0571R01","Analysis from ECHONET on TR-0017","NTT","2015-05-19T00:39:20","Draft","CR",null,"MAS 17"]
["MAS-2015-0574R01","MAS#17 Document Allocation","Yongjing Zhang (Huawei, Chair)","2015-05-18T10:24:32","Draft","AG",null,"MAS 17"]
["MAS-2015-0569R01","oneM2M_architecture_semantics","Modacom","2015-05-18T06:48:30","Draft","INC",null,"MAS 17"]
["MAS-2015-0570R01","semnatics_data_analytics","Modacom","2015-05-18T06:46:57","Draft","INC",null,"MAS 17"]
["MAS-2015-0568R02","Ontology Architectural Support Considerrations","InterDigital","2015-05-18T05:34:32","Draft","INC",null,"MAS 17"]
["MAS-2015-0573R01","Agenda MAS#17","Yongjing Zhang (Huawei, Chair)","2015-05-18T04:02:36","Draft","AG",null,"MAS 17"]
["MAS-2015-0555R01","TS-0005-LWM2M-V1_0_1_Fix","Gemalto N.V","2015-05-18T02:14:16","Draft","CR",null,"MAS 17"]
["MAS-2015-0556R01","TS-0005-LWM2M-V1_0_1_Fix Mirror","Gemalto N.V","2015-05-18T02:13:07","Draft","CR",null,"MAS 17"]
["MAS-2015-0578","SemanticDiscoveryApproach","NEC","2015-05-18T00:02:46","Draft","INC",null,"MAS 17"]
["MAS-2015-0573","Agenda MAS#17","Yongjing Zhang (Huawei, Chair)","2015-05-14T09:11:03","Draft","AG",null,"MAS 17"]
["MAS-2015-0574","MAS#17 Document Allocation","Yongjing Zhang (Huawei, Chair)","2015-05-14T09:10:42","Draft","AG",null,"MAS 17"]
["MAS-2015-0560R02","components of the base ontology","China Unicom","2015-05-14T04:18:54","Draft","INC",null,"MAS 17"]
["MAS-2015-0565R01","Applying IOCD to oneM2M","Huawei Technologies, Haier, Hitachi, China Unicom, Datang, China academy of information and communications technology","2015-05-14T02:32:06","Draft","INC",null,"MAS 17"]
["MAS-2015-0552R03","CR_to_Add_Semantic_Descriptor_in_TR-0007","NEC, Alcatel-Lucent","2015-05-13T10:58:11","Draft","CR",null,"MAS 17"]
["MAS-2015-0575R01","Clarification_of_abstract_information_model_Approach_1","LG Electronics","2015-05-13T08:38:08","Draft","CR",null,"MAS 17"]
["MAS-2015-0571","Analysis from ECHONET on TR-0017","NTT","2015-05-13T06:22:11","Draft","CR",null,"MAS 17"]
["MAS-2015-0572","Extension to Device Sets on TR-0017","NTT","2015-05-13T06:21:25","Draft","CR",null,"MAS 17"]
["MAS-2015-0576","Wayforward of Abstract Information Model","LG Electronics","2015-05-12T10:20:26","Draft","CR",null,"MAS 17"]
["MAS-2015-0575","Clarification_of_abstract_information_model_Approach_1","LG Electronics","2015-05-12T10:18:12","Draft","CR",null,"MAS 17"]
["MAS-2015-0563","Update on TS-0012 on general principles and generic interworking","NEC","2015-05-11T19:30:18","Draft","INC",null,"MAS 17"]
["MAS-2015-0558","Device Management related Questions to oneM2M","ORANGE (ETSI)","2015-05-10T20:33:41","Draft","INC",null,"MAS 17"]
["MAS-2015-0570","semnatics_data_analytics","Modacom","2015-05-10T18:06:32","Draft","INC",null,"MAS 17"]
["MAS-2015-0569","oneM2M_architecture_semantics","Modacom","2015-05-10T18:04:32","Draft","INC",null,"MAS 17"]
["MAS-2015-0568R01","Ontology Architectural Support Considerrations","InterDigital","2015-05-10T17:25:58","Draft","INC",null,"MAS 17"]
["MAS-2015-0567","TR0007 sec8_4_1","InterDigital","2015-05-10T17:25:34","Draft","CR",null,"MAS 17"]
["MAS-2015-0566","Mapping SAREF to oneM2M - initial discussion draft","Omar Elloumi, ALU (ATIS)","2015-05-10T16:53:50","Draft","INC",null,"MAS 17"]
["MAS-2015-0565","Applying IOCD to oneM2M","Huawei Technologies, Haier, Hitachi, China Unicom, Datang, China academy of information and communications technology","2015-05-10T14:17:14","Draft","INC",null,"MAS 17"]
["MAS-2015-0534R01","DeviceConfigurationUseCases","FUJITSU","2015-05-10T14:13:47","Draft","INC",null,"MAS 17"]
["MAS-2015-0564","oneM2M base ontology proposal","Omar Elloumi Alcatel-Lucent (ATIS),  Mahdi Ben Alaya LAAS-CNRS (ETSI),  Khalil Drira LAAS-CNRS (ETSI)","2015-05-10T11:39:12","Draft","INC",null,"MAS 17"]
["MAS-2015-0557","TR-0017 support of HGI SmartHome Device Template","HGI","2015-05-08T14:28:09","Draft","INC",null,"MAS 17"]
["MAS-2015-0562","Discussions on semantic description enablement","China Unicom","2015-05-08T09:48:00","Draft","INC",null,"MAS 17"]
["MAS-2015-0560R01","components of the base ontology","China Unicom","2015-05-08T06:54:09","Draft","INC",null,"MAS 17"]
["MAS-2015-0561","methods for jointly using ontologies","China Unicom","2015-05-08T06:51:57","Draft","INC",null,"MAS 17"]
["MAS-2015-0560","components of the base ontology","China Unicom","2015-05-08T06:49:09","Draft","CR",null,"MAS 17"]
["MAS-2015-0556","TS-0005-LWM2M-V1_0_1_Fix Mirror","Gemalto N.V","2015-05-04T15:32:27","Draft","CR",null,"MAS 17"]
["MAS-2015-0555","TS-0005-LWM2M-V1_0_1_Fix","Gemalto N.V","2015-05-04T15:30:56","Draft","CR",null,"MAS 17"]
["MAS-2015-0550","Update TS-0006 XML namespace","ALU (TIA)","2015-04-29T06:34:57","Draft","CR",null,"MAS 17"]
["MAS-2015-0577","Minutes MAS TP17","secretary",null,"Draft","MIN",null,"MAS 17"]
["MAS-2015-0568","Ontology Management Considerrations","InterDigital",null,"Draft","INC",null,"MAS 17"]
["MAS-2015-0559","Contribution to TR-0017 SH-Abstract-Information-Model","ORANGE (ETSI)",null,"Draft","INC",null,"MAS 17"]

{"sheet":"TST","index":9,"n_rows":26,"n_cols":8,"rows_kept":26,"cut":false,"hidden":false,"merged":[]}
["SHORT DOC NB","SHORTNAME","SOURCE","UPLOADED","STATUS","DOC TYPE","VERS","MEETING"]
["TST-2015-0098R01","TST-17-Agenda","WG6 Chair","2015-05-17T07:49:39","Draft","AG",null,"TST 17"]
["TST-2015-0099R02","TST_17_docs_allocation","WG6 Chair","2015-05-17T07:48:58","Draft","AG",null,"TST 17"]
["TST-2015-0100","ICS-ICS Proforma Annex","KETI","2015-05-15T08:23:46","Draft","INC",null,"TST 17"]
["TST-2015-0099R01","TST_17_docs_allocation","WG6 Chair","2015-05-15T04:28:21","Draft","AG",null,"TST 17"]
["TST-2015-0098","TST-17-Agenda","WG6 Chair","2015-05-15T04:27:48","Draft","AG",null,"TST 17"]
["TST-2015-0099","TST_17_docs_allocation","WG6 Chair","2015-05-15T01:58:39","Draft","AG",null,"TST 17"]
["TST-2015-0096R01","TS-0013 MQTT binding messages","LG Electronics","2015-05-14T09:13:57","Draft","INC",null,"TST 17"]
["TST-2015-0093R01","TS-0013_update_of_test_descriptions","Qualcomm Inc. (TIA)","2015-05-13T23:47:28","Draft","INC",null,"TST 17"]
["TST-2015-0096","TS-0013 MQTT binding messages","LG Electronics","2015-05-13T12:44:48","Draft","INC",null,"TST 17"]
["TST-2015-0095","TS-0013 binding message convention","LG Electronics","2015-05-13T12:44:13","Draft","INC",null,"TST 17"]
["TST-2015-0097","TSS&TP-Test Groups","KETI","2015-05-12T09:37:34","Draft","INC",null,"TST 17"]
["TST-2015-0094","multi hop container mgmt","Mahdi Ben Alaya (LAAS-CNRS)","2015-05-11T01:48:21","Draft","CR",null,"TST 17"]
["TST-2015-0093","TS-0013_update_of_test_descriptions","Qualcomm Inc. (TIA)","2015-05-11T01:05:12","Draft","INC",null,"TST 17"]
["TST-2015-0092","non blocking asynchronous test Container","Mahdi Ben Alaya (LAAS-CNRS)","2015-05-11T00:14:08","Draft","CR",null,"TST 17"]
["TST-2015-0091","non blocking synchronous test Container","Mahdi Ben Alaya (LAAS-CNRS)","2015-05-10T23:51:35","Draft","CR",null,"TST 17"]
["TST-2015-0089R01","single hop Discovery test","Mahdi Ben Alaya (LAAS-CNRS)","2015-05-10T22:24:22","Draft","CR",null,"TST 17"]
["TST-2015-0090","correct no hop Discovery test","Mahdi Ben Alaya (LAAS-CNRS)","2015-05-10T22:21:17","Draft","CR",null,"TST 17"]
["TST-2015-0089","single hop Discovery test","Mahdi Ben Alaya - LAAS-CNRS","2015-05-10T21:54:11","Draft","CR",null,"TST 17"]
["TST-2015-0087R01","single hop Group mgmt","Mahdi Ben Alaya (LAAS-CNRS)","2015-05-10T15:23:04","Draft","CR",null,"TST 17"]
["TST-2015-0086R01","single hop ACP mgmt","Mahdi Ben Alaya (LAAS-CNRS)","2015-05-10T15:22:10","Draft","CR",null,"TST 17"]
["TST-2015-0088","single hop Subscription mgmt","Mahdi Ben Alaya (LAAS-CNRS)","2015-05-10T15:21:18","Draft","CR",null,"TST 17"]
["TST-2015-0087","single hop Group mgmt","Mahdi Ben Alaya (LAAS-CNRS)","2015-05-10T14:27:30","Draft","CR",null,"TST 17"]
["TST-2015-0086","single hop ACP mgmt","Mahdi Ben Alaya (LAAS-CNRS)","2015-05-10T14:25:52","Draft","CR",null,"TST 17"]
["TST-2015-0085","Polling Channel Tests","InterDigital","2015-05-10T13:54:39","Draft","INC",null,"TST 17"]
["TST-2015-0101","Minutes TST TP17","secretary",null,"Draft","MIN",null,"TST 17"]